Workbook

Sheet Instructions
A1: Instructions:
A3: 1 | C3: Download from P123 the model performance.
D4: Copy the performance from 12/31/199 onwards into the sheet "Long Model" cell A4.
D5: R2G models are downloaded from P123 as indicated to the right.
A7: 2 | C7: Manual (Macros Disabled): Select sheet "Hedged"
B8: a. | D8: Cell H1 enter 0%
B9: b. | D9: Then one has to “value paste” block AD65:AD78 into block AE65:AE78 and AL65:AL78. This provides the zero hedge numbers for the %-increase calcs in block AL65:AL78.
B10: c. | D10: Cell H1 enter percentage of long portfolio to be used in a margin account for short portfolio
B11: d. | D11: Results are displayed in cells K83 to K91
B12: e. | D12: The table D79:F91 is NOT updated
A14: 3 | C14: Automatic: Select sheet "Hedged"
B15: a. | D15: Click the button at Cell D77.
B16: b. | D16: Results are displayed in table below the button
B18: Disclaimer Please be aware that all results shown are from a simulation and not from actual trading. They are presented here for information purposes only and shall not be construed as advice to invest in any assets or purchase any subscriptions mentioned, described or advertised. Out-of-sample performance may be much different. Backtesting results must be interpreted in light of differences between simulated performance and actual trading, differences between subscriber performance and live out-of-sample model performance, and an understanding that past performance is no guarantee of future results. All investors should make investment choices based upon their own analysis of the asset, its expected returns and risks, or consult a financial adviser. The designers of this model are not registered investment advisers. GEOV LLC (A Connecticut limited liability company) and its agents disclaim any liability for losses incurred while acting upon information provided by the Company or its agents.

Sheet Hedged
H1: 0 | I1: short | L1: excess end of quarter for short port | M1: =H1 -> 0 | N1: =I1 -> short | O1: 3-mo performance of long-short portfolio | AC1: hedged | AD1: =TEXT(M67,"0.0%") -> 0.0% | AE1: of long portfolio value, | AG1: rebalanced every quarter
M2: value at beginning of quarter | N2: value at end of quarter | Q2: value at end of quarter long port | R2: excess at end of quarter short port | S2: value at end of quarter all | U2: quarters with negative performance | X2: quarters with positive performance
O3: =MIN(O5:O61) -> -0.08258762493 | P3: min | U3: =SUM(U5:U175) -> 10 | V3: of | W3: =MAX(V5:V61) -> 57
A4: ='Long Model'!A1 -> Best(SPY-Cash) | H4: ='Short Model'!A1 -> Best(Short) Large-Cap | O4: =AVERAGE(O5:O61) -> 0.04035009877 | P4: avg
A5: 2000-01-01 | B5: =A6 -> 2000-04-01 | C5: =VLOOKUP(A5,'Long Model'!$A$4:$J$4000,10) -> 100 | D5: =VLOOKUP(B5,'Long Model'!$A$4:$J$4000,10) -> 98.88 | E5: 100 | F5: =D5/C5*E5 -> 98.88 | H5: ='Short Model'!O5 -> 100 | I5: ='Short Model'!P5 -> 98.69 | J5: 100 | K5: =I5/H5*J5 -> 98.69 | L5: =K5-J5 -> -1.31 | M5: =E5 -> 100 | N5: =S5 -> 98.88 | O5: =(N5-M5)/M5 -> -0.0112 | Q5: =F5 -> 98.88 | R5: =L5*M5*$H$1/J5 -> 0 | S5: =Q5+R5 -> 98.88 | U5: =IF(O5<0,1,0) -> 1 | V5: 1
A6: 2000-04-01 | B6: =A7 -> 2000-07-01 | C6: =VLOOKUP(A6,'Long Model'!$A$4:$J$4000,10) -> 98.88 | D6: =VLOOKUP(B6,'Long Model'!$A$4:$J$4000,10) -> 96.75 | E6: 100 | F6: =D6/C6*E6 -> 97.84587379 | H6: ='Short Model'!O6 -> 98.69 | I6: ='Short Model'!P6 -> 125.54 | J6: 100 | K6: =I6/H6*J6 -> 127.2064039 | L6: =K6-J6 -> 27.20640389 | M6: =N5 -> 98.88 | N6: =S6 -> 96.75 | O6: =(N6-M6)/M6 -> -0.02154126214 | Q6: =M6*F6/E6 -> 96.75 | R6: =L6*M6*$H$1/J6 -> 0 | S6: =Q6+R6 -> 96.75 | U6: =IF(O6<0,1,0) -> 1 | V6: =V5+1 -> 2
A7: 2000-07-01 | B7: 2000-10-01 | C7: =VLOOKUP(A7,'Long Model'!$A$4:$J$4000,10) -> 96.75 | D7: =VLOOKUP(B7,'Long Model'!$A$4:$J$4000,10) -> 96.98 | E7: 100 | F7: =D7/C7*E7 -> 100.2377261 | H7: ='Short Model'!O7 -> 125.54 | I7: ='Short Model'!P7 -> 134.4 | J7: 100 | K7: =I7/H7*J7 -> 107.0575116 | L7: 7.05751155 | M7: =N6 -> 96.75 | N7: =S7 -> 96.98 | O7: 0.002377260982 | Q7: =M7*F7/E7 -> 96.98 | R7: =L7*M7*$H$1/J7 -> 0 | S7: =Q7+R7 -> 96.98 | U7: 0 | V7: =V6+1 -> 3
A8: 2000-10-01 | B8: 2001-01-01 | C8: =VLOOKUP(A8,'Long Model'!$A$4:$J$4000,10) -> 96.98 | D8: =VLOOKUP(B8,'Long Model'!$A$4:$J$4000,10) -> 96.98 | E8: 100 | F8: =D8/C8*E8 -> 100 | H8: ='Short Model'!O8 -> 134.4 | I8: ='Short Model'!P8 -> 210.87 | J8: 100 | K8: =I8/H8*J8 -> 156.8973214 | L8: 56.89732143 | M8: 96.98 | N8: 96.98 | O8: 0 | Q8: 96.98 | R8: 0 | S8: 96.98 | U8: 0 | V8: 4
A9: 2001-01-01 | B9: 2001-04-01 | C9: =VLOOKUP(A9,'Long Model'!$A$4:$J$4000,10) -> 96.98 | D9: =VLOOKUP(B9,'Long Model'!$A$4:$J$4000,10) -> 96.98 | E9: 100 | F9: =D9/C9*E9 -> 100 | H9: ='Short Model'!O9 -> 210.87 | I9: ='Short Model'!P9 -> 298.55 | J9: 100 | K9: =I9/H9*J9 -> 141.5801205 | L9: 41.58012045 | M9: 96.98 | N9: 96.98 | O9: 0 | Q9: 96.98 | R9: 0 | S9: 96.98 | U9: 0 | V9: 5
A10: 2001-04-01 | B10: 2001-07-01 | C10: =VLOOKUP(A10,'Long Model'!$A$4:$J$4000,10) -> 96.98 | D10: =VLOOKUP(B10,'Long Model'!$A$4:$J$4000,10) -> 94.73 | E10: 100 | F10: 97.67993401 | H10: ='Short Model'!O10 -> 298.55 | I10: ='Short Model'!P10 -> 338.51 | J10: 100 | K10: 113.3846927 | L10: 13.38469268 | M10: 96.98 | N10: 94.73 | O10: -0.02320065993 | Q10: 94.73 | R10: 0 | S10: 94.73 | U10: 1 | V10: 6
A11: 2001-07-01 | B11: 2001-10-01 | C11: =VLOOKUP(A11,'Long Model'!$A$4:$J$4000,10) -> 94.73 | D11: =VLOOKUP(B11,'Long Model'!$A$4:$J$4000,10) -> 92.67 | E11: 100 | F11: 97.8253985 | H11: ='Short Model'!O11 -> 338.51 | I11: ='Short Model'!P11 -> 568.94 | J11: 100 | K11: 168.0718443 | L11: 68.07184426 | M11: 94.73 | N11: 92.67 | O11: -0.02174601499 | Q11: 92.67 | R11: 0 | S11: 92.67 | U11: 1 | V11: 7
A12: 2001-10-01 | B12: 2002-01-01 | C12: =VLOOKUP(A12,'Long Model'!$A$4:$J$4000,10) -> 92.67 | D12: =VLOOKUP(B12,'Long Model'!$A$4:$J$4000,10) -> 100.61 | E12: 100 | F12: 108.5680371 | H12: ='Short Model'!O12 -> 568.94 | I12: ='Short Model'!P12 -> 564.45 | J12: 100 | K12: 99.21081309 | L12: -0.789186909 | M12: 92.67 | N12: 100.61 | O12: 0.08568037121 | Q12: 100.61 | R12: 0 | S12: 100.61 | U12: 0 | V12: 8
A13: 2002-01-01 | B13: 2002-04-01 | C13: =VLOOKUP(A13,'Long Model'!$A$4:$J$4000,10) -> 100.61 | D13: =VLOOKUP(B13,'Long Model'!$A$4:$J$4000,10) -> 100.61 | E13: 100 | F13: 100 | H13: ='Short Model'!O13 -> 564.45 | I13: ='Short Model'!P13 -> 621.12 | J13: 100 | K13: 110.0398618 | L13: 10.03986181 | M13: 100.61 | N13: 100.61 | O13: 0 | Q13: 100.61 | R13: 0 | S13: 100.61 | U13: 0 | V13: 9
A14: 2002-04-01 | B14: 2002-07-01 | C14: =VLOOKUP(A14,'Long Model'!$A$4:$J$4000,10) -> 100.61 | D14: =VLOOKUP(B14,'Long Model'!$A$4:$J$4000,10) -> 100.61 | E14: 100 | F14: 100 | H14: ='Short Model'!O14 -> 621.12 | I14: ='Short Model'!P14 -> 791.57 | J14: 100 | K14: 127.4423622 | L14: 27.44236218 | M14: 100.61 | N14: 100.61 | O14: 0 | Q14: 100.61 | R14: 0 | S14: 100.61 | U14: 0 | V14: 10
A15: 2002-07-01 | B15: 2002-10-01 | C15: =VLOOKUP(A15,'Long Model'!$A$4:$J$4000,10) -> 100.61 | D15: =VLOOKUP(B15,'Long Model'!$A$4:$J$4000,10) -> 100.28 | E15: 100 | F15: 99.6720008 | H15: ='Short Model'!O15 -> 791.57 | I15: ='Short Model'!P15 -> 966.51 | J15: 100 | K15: 122.1003828 | L15: 22.10038278 | M15: 100.61 | N15: 100.28 | O15: -0.003279992049 | Q15: 100.28 | R15: 0 | S15: 100.28 | U15: 1 | V15: 11
A16: 2002-10-01 | B16: 2003-01-01 | C16: =VLOOKUP(A16,'Long Model'!$A$4:$J$4000,10) -> 100.28 | D16: =VLOOKUP(B16,'Long Model'!$A$4:$J$4000,10) -> 104.94 | E16: 100 | F16: 104.6469884 | H16: ='Short Model'!O16 -> 966.51 | I16: ='Short Model'!P16 -> 1076.45 | J16: 100 | K16: 111.374947 | L16: 11.37494697 | M16: 100.28 | N16: 104.94 | O16: 0.04646988432 | Q16: 104.94 | R16: 0 | S16: 104.94 | U16: 0 | V16: 12
A17: 2003-01-01 | B17: 2003-04-01 | C17: =VLOOKUP(A17,'Long Model'!$A$4:$J$4000,10) -> 104.94 | D17: =VLOOKUP(B17,'Long Model'!$A$4:$J$4000,10) -> 108.19 | E17: 100 | F17: 103.0970078 | H17: ='Short Model'!O17 -> 1076.45 | I17: ='Short Model'!P17 -> 1081.98 | J17: 100 | K17: 100.5137257 | L17: 0.5137256723 | M17: 104.94 | N17: 108.19 | O17: 0.03097007814 | Q17: 108.19 | R17: 0 | S17: 108.19 | U17: 0 | V17: 13
A18: 2003-04-01 | B18: 2003-07-01 | C18: =VLOOKUP(A18,'Long Model'!$A$4:$J$4000,10) -> 108.19 | D18: =VLOOKUP(B18,'Long Model'!$A$4:$J$4000,10) -> 122.95 | E18: 100 | F18: 113.6426657 | H18: ='Short Model'!O18 -> 1081.98 | I18: ='Short Model'!P18 -> 1091.49 | J18: 100 | K18: 100.8789442 | L18: 0.8789441579 | M18: 108.19 | N18: 122.95 | O18: 0.1364266568 | Q18: 122.95 | R18: 0 | S18: 122.95 | U18: 0 | V18: 14
A19: 2003-07-01 | B19: 2003-10-01 | C19: =VLOOKUP(A19,'Long Model'!$A$4:$J$4000,10) -> 122.95 | D19: =VLOOKUP(B19,'Long Model'!$A$4:$J$4000,10) -> 127.83 | E19: 100 | F19: =D19/C19*E19 -> 103.9690931 | H19: ='Short Model'!O19 -> 1091.49 | I19: ='Short Model'!P19 -> 1090.22 | J19: 100 | K19: =I19/H19*J19 -> 99.88364529 | L19: =K19-J19 -> -0.1163547078 | M19: =N18 -> 122.95 | N19: =S19 -> 127.83 | O19: 0.03969093127 | Q19: =M19*F19/E19 -> 127.83 | R19: =L19*M19*$H$1/J19 -> 0 | S19: =Q19+R19 -> 127.83 | U19: 0 | V19: 15
A20: 2003-10-01 | B20: 2004-01-01 | C20: =VLOOKUP(A20,'Long Model'!$A$4:$J$4000,10) -> 127.83 | D20: =VLOOKUP(B20,'Long Model'!$A$4:$J$4000,10) -> 139.86 | E20: 100 | F20: 109.4109364 | H20: ='Short Model'!O20 -> 1090.22 | I20: ='Short Model'!P20 -> 1055.6 | J20: 100 | K20: 96.82449414 | L20: -3.175505861 | M20: 127.83 | N20: 139.86 | O20: 0.094109364 | Q20: 139.86 | R20: 0 | S20: 139.86 | U20: 0 | V20: 16
A21: 2004-01-01 | B21: 2004-04-01 | C21: =VLOOKUP(A21,'Long Model'!$A$4:$J$4000,10) -> 139.86 | D21: =VLOOKUP(B21,'Long Model'!$A$4:$J$4000,10) -> 143.64 | E21: 100 | F21: 102.7027027 | H21: ='Short Model'!O21 -> 1055.6 | I21: ='Short Model'!P21 -> 1018.45 | J21: 100 | K21: 96.4806745 | L21: -3.519325502 | M21: 139.86 | N21: 143.64 | O21: 0.02702702703 | Q21: 143.64 | R21: 0 | S21: 143.64 | U21: 0 | V21: 17
A22: 2004-04-01 | B22: 2004-07-01 | C22: =VLOOKUP(A22,'Long Model'!$A$4:$J$4000,10) -> 143.64 | D22: =VLOOKUP(B22,'Long Model'!$A$4:$J$4000,10) -> 143.29 | E22: 100 | F22: 99.75633528 | H22: ='Short Model'!O22 -> 1018.45 | I22: ='Short Model'!P22 -> 1064.48 | J22: 100 | K22: 104.5196131 | L22: 4.519613138 | M22: 143.64 | N22: 143.29 | O22: -0.002436647173 | Q22: 143.29 | R22: 0 | S22: 143.29 | U22: 1 | V22: 18
A23: 2004-07-01 | B23: 2004-10-01 | C23: =VLOOKUP(A23,'Long Model'!$A$4:$J$4000,10) -> 143.29 | D23: =VLOOKUP(B23,'Long Model'!$A$4:$J$4000,10) -> 152.13 | E23: 100 | F23: 106.169307 | H23: ='Short Model'!O23 -> 1064.48 | I23: ='Short Model'!P23 -> 1129.87 | J23: 100 | K23: 106.1429055 | L23: 6.142905456 | M23: 143.29 | N23: 152.13 | O23: 0.06169307 | Q23: 152.13 | R23: 0 | S23: 152.13 | U23: 0 | V23: 19
A24: 2004-10-01 | B24: 2005-01-01 | C24: =VLOOKUP(A24,'Long Model'!$A$4:$J$4000,10) -> 152.13 | D24: =VLOOKUP(B24,'Long Model'!$A$4:$J$4000,10) -> 165.63 | E24: 100 | F24: 108.8739894 | H24: ='Short Model'!O24 -> 1129.87 | I24: ='Short Model'!P24 -> 1022.09 | J24: 100 | K24: 90.46084948 | L24: -9.539150522 | M24: 152.13 | N24: 165.63 | O24: 0.08873989351 | Q24: 165.63 | R24: 0 | S24: 165.63 | U24: 0 | V24: 20
A25: 2005-01-01 | B25: 2005-04-01 | C25: =VLOOKUP(A25,'Long Model'!$A$4:$J$4000,10) -> 165.63 | D25: =VLOOKUP(B25,'Long Model'!$A$4:$J$4000,10) -> 162.53 | E25: 100 | F25: 98.12835839 | H25: ='Short Model'!O25 -> 1022.09 | I25: ='Short Model'!P25 -> 1081.02 | J25: 100 | K25: 105.7656371 | L25: 5.765637077 | M25: 165.63 | N25: 162.53 | O25: -0.01871641611 | Q25: 162.53 | R25: 0 | S25: 162.53 | U25: 1 | V25: 21
A26: 2005-04-01 | B26: 2005-07-01 | C26: =VLOOKUP(A26,'Long Model'!$A$4:$J$4000,10) -> 162.53 | D26: =VLOOKUP(B26,'Long Model'!$A$4:$J$4000,10) -> 168.36 | E26: 100 | F26: 103.5870301 | H26: ='Short Model'!O26 -> 1081.02 | I26: ='Short Model'!P26 -> 1031.88 | J26: 100 | K26: 95.45429317 | L26: -4.545706832 | M26: 162.53 | N26: 168.36 | O26: 0.03587030087 | Q26: 168.36 | R26: 0 | S26: 168.36 | U26: 0 | V26: 22
A27: 2005-07-01 | B27: 2005-10-01 | C27: =VLOOKUP(A27,'Long Model'!$A$4:$J$4000,10) -> 168.36 | D27: =VLOOKUP(B27,'Long Model'!$A$4:$J$4000,10) -> 174.48 | E27: 100 | F27: 103.6350677 | H27: ='Short Model'!O27 -> 1031.88 | I27: ='Short Model'!P27 -> 1012.67 | J27: 100 | K27: 98.13834942 | L27: -1.86165058 | M27: 168.36 | N27: 174.48 | O27: 0.03635067712 | Q27: 174.48 | R27: 0 | S27: 174.48 | U27: 0 | V27: 23
A28: 2005-10-01 | B28: 2006-01-01 | C28: =VLOOKUP(A28,'Long Model'!$A$4:$J$4000,10) -> 174.48 | D28: =VLOOKUP(B28,'Long Model'!$A$4:$J$4000,10) -> 175.23 | E28: 100 | F28: 100.4298487 | H28: ='Short Model'!O28 -> 1012.67 | I28: ='Short Model'!P28 -> 1013.5 | J28: 100 | K28: 100.0819615 | L28: 0.0819615472 | M28: 174.48 | N28: 175.23 | O28: 0.004298486933 | Q28: 175.23 | R28: 0 | S28: 175.23 | U28: 0 | V28: 24
A29: 2006-01-01 | B29: 2006-04-01 | C29: =VLOOKUP(A29,'Long Model'!$A$4:$J$4000,10) -> 175.23 | D29: =VLOOKUP(B29,'Long Model'!$A$4:$J$4000,10) -> 179.51 | E29: 100 | F29: 102.4425041 | H29: ='Short Model'!O29 -> 1013.5 | I29: ='Short Model'!P29 -> 1026.18 | J29: 100 | K29: 101.25111 | L29: 1.251110015 | M29: 175.23 | N29: 179.51 | O29: 0.02442504137 | Q29: 179.51 | R29: 0 | S29: 179.51 | U29: 0 | V29: 25
A30: 2006-04-01 | B30: 2006-07-01 | C30: =VLOOKUP(A30,'Long Model'!$A$4:$J$4000,10) -> 179.51 | D30: =VLOOKUP(B30,'Long Model'!$A$4:$J$4000,10) -> 174.88 | E30: 100 | F30: 97.4207565 | H30: ='Short Model'!O30 -> 1026.18 | I30: ='Short Model'!P30 -> 1040.96 | J30: 100 | K30: 101.4402931 | L30: 1.440293126 | M30: 179.51 | N30: 174.88 | O30: -0.02579243496 | Q30: 174.88 | R30: 0 | S30: 174.88 | U30: 1 | V30: 26
A31: 2006-07-01 | B31: 2006-10-01 | C31: =VLOOKUP(A31,'Long Model'!$A$4:$J$4000,10) -> 174.88 | D31: =VLOOKUP(B31,'Long Model'!$A$4:$J$4000,10) -> 189.2 | E31: 100 | F31: 108.1884721 | H31: ='Short Model'!O31 -> 1040.96 | I31: ='Short Model'!P31 -> 1044.41 | J31: 100 | K31: 100.3314248 | L31: 0.3314248386 | M31: 174.88 | N31: 189.2 | O31: 0.08188472095 | Q31: 189.2 | R31: 0 | S31: 189.2 | U31: 0 | V31: 27
A32: 2006-10-01 | B32: 2007-01-01 | C32: =VLOOKUP(A32,'Long Model'!$A$4:$J$4000,10) -> 189.2 | D32: =VLOOKUP(B32,'Long Model'!$A$4:$J$4000,10) -> 201.41 | E32: 100 | F32: 106.4534884 | H32: ='Short Model'!O32 -> 1044.41 | I32: ='Short Model'!P32 -> 1054.95 | J32: 100 | K32: 101.0091822 | L32: 1.009182218 | M32: 189.2 | N32: 201.41 | O32: 0.06453488372 | Q32: 201.41 | R32: 0 | S32: 201.41 | U32: 0 | V32: 28
A33: 2007-01-01 | B33: 2007-04-01 | C33: =VLOOKUP(A33,'Long Model'!$A$4:$J$4000,10) -> 201.41 | D33: =VLOOKUP(B33,'Long Model'!$A$4:$J$4000,10) -> 203.82 | E33: 100 | F33: 101.1965642 | H33: ='Short Model'!O33 -> 1054.95 | I33: ='Short Model'!P33 -> 1034.79 | J33: 100 | K33: 98.08900896 | L33: -1.910991042 | M33: 201.41 | N33: 203.82 | O33: 0.01196564222 | Q33: 203.82 | R33: 0 | S33: 203.82 | U33: 0 | V33: 29
A34: 2007-04-01 | B34: 2007-07-01 | C34: =VLOOKUP(A34,'Long Model'!$A$4:$J$4000,10) -> 203.82 | D34: =VLOOKUP(B34,'Long Model'!$A$4:$J$4000,10) -> 215.92 | E34: 100 | F34: 105.9366107 | H34: ='Short Model'!O34 -> 1034.79 | I34: ='Short Model'!P34 -> 1112.56 | J34: 100 | K34: 107.5155346 | L34: 7.515534553 | M34: 203.82 | N34: 215.92 | O34: 0.05936610735 | Q34: 215.92 | R34: 0 | S34: 215.92 | U34: 0 | V34: 30
A35: 2007-07-01 | B35: 2007-10-01 | C35: =VLOOKUP(A35,'Long Model'!$A$4:$J$4000,10) -> 215.92 | D35: =VLOOKUP(B35,'Long Model'!$A$4:$J$4000,10) -> 222.88 | E35: 100 | F35: 103.2234161 | H35: ='Short Model'!O35 -> 1112.56 | I35: ='Short Model'!P35 -> 1135.22 | J35: 100 | K35: 102.0367441 | L35: 2.036744086 | M35: 215.92 | N35: 222.88 | O35: 0.0322341608 | Q35: 222.88 | R35: 0 | S35: 222.88 | U35: 0 | V35: 31
A36: 2007-10-01 | B36: 2008-01-01 | C36: =VLOOKUP(A36,'Long Model'!$A$4:$J$4000,10) -> 222.88 | D36: =VLOOKUP(B36,'Long Model'!$A$4:$J$4000,10) -> 223.45 | E36: 100 | F36: 100.255743 | H36: ='Short Model'!O36 -> 1135.22 | I36: ='Short Model'!P36 -> 1256.18 | J36: 100 | K36: 110.6552034 | L36: 10.6552034 | M36: 222.88 | N36: 223.45 | O36: 0.002557430007 | Q36: 223.45 | R36: 0 | S36: 223.45 | U36: 0 | V36: 32
A37: 2008-01-01 | B37: 2008-04-01 | C37: =VLOOKUP(A37,'Long Model'!$A$4:$J$4000,10) -> 223.45 | D37: =VLOOKUP(B37,'Long Model'!$A$4:$J$4000,10) -> 224.62 | E37: 100 | F37: 100.5236071 | H37: ='Short Model'!O37 -> 1256.18 | I37: ='Short Model'!P37 -> 1369.14 | J37: 100 | K37: 108.9923419 | L37: 8.992341862 | M37: 223.45 | N37: 224.62 | O37: 0.005236070709 | Q37: 224.62 | R37: 0 | S37: 224.62 | U37: 0 | V37: 33
A38: 2008-04-01 | B38: 2008-07-01 | C38: =VLOOKUP(A38,'Long Model'!$A$4:$J$4000,10) -> 224.62 | D38: =VLOOKUP(B38,'Long Model'!$A$4:$J$4000,10) -> 234.86 | E38: 100 | F38: 104.5588104 | H38: ='Short Model'!O38 -> 1369.14 | I38: ='Short Model'!P38 -> 1404.82 | J38: 100 | K38: 102.6060155 | L38: 2.606015455 | M38: 224.62 | N38: 234.86 | O38: 0.04558810435 | Q38: 234.86 | R38: 0 | S38: 234.86 | U38: 0 | V38: 34
A39: 2008-07-01 | B39: 2008-10-01 | C39: =VLOOKUP(A39,'Long Model'!$A$4:$J$4000,10) -> 234.86 | D39: =VLOOKUP(B39,'Long Model'!$A$4:$J$4000,10) -> 234.86 | E39: 100 | F39: 100 | H39: ='Short Model'!O39 -> 1404.82 | I39: ='Short Model'!P39 -> 1459.98 | J39: 100 | K39: 103.9264817 | L39: 3.926481684 | M39: 234.86 | N39: 234.86 | O39: 0 | Q39: 234.86 | R39: 0 | S39: 234.86 | U39: 0 | V39: 35
A40: 2008-10-01 | B40: 2009-01-01 | C40: =VLOOKUP(A40,'Long Model'!$A$4:$J$4000,10) -> 234.86 | D40: =VLOOKUP(B40,'Long Model'!$A$4:$J$4000,10) -> 257.84 | E40: 100 | F40: 109.7845525 | H40: ='Short Model'!O40 -> 1459.98 | I40: ='Short Model'!P40 -> 2443.34 | J40: 100 | K40: 167.3543473 | L40: 67.35434732 | M40: 234.86 | N40: 257.84 | O40: 0.09784552499 | Q40: 257.84 | R40: 0 | S40: 257.84 | U40: 0 | V40: 36
A41: 2009-01-01 | B41: 2009-04-01 | C41: =VLOOKUP(A41,'Long Model'!$A$4:$J$4000,10) -> 257.84 | D41: =VLOOKUP(B41,'Long Model'!$A$4:$J$4000,10) -> 267.14 | E41: 100 | F41: 103.606888 | H41: ='Short Model'!O41 -> 2443.34 | I41: ='Short Model'!P41 -> 2612.39 | J41: 100 | K41: 106.9188079 | L41: 6.918807861 | M41: 257.84 | N41: 267.14 | O41: 0.03606887993 | Q41: 267.14 | R41: 0 | S41: 267.14 | U41: 0 | V41: 37
A42: 2009-04-01 | B42: 2009-07-01 | C42: =VLOOKUP(A42,'Long Model'!$A$4:$J$4000,10) -> 267.14 | D42: =VLOOKUP(B42,'Long Model'!$A$4:$J$4000,10) -> 304.37 | E42: 100 | F42: 113.9365127 | H42: ='Short Model'!O42 -> 2612.39 | I42: ='Short Model'!P42 -> 2649.78 | J42: 100 | K42: 101.4312564 | L42: 1.431256436 | M42: 267.14 | N42: 304.37 | O42: 0.1393651269 | Q42: 304.37 | R42: 0 | S42: 304.37 | U42: 0 | V42: 38
A43: 2009-07-01 | B43: 2009-10-01 | C43: =VLOOKUP(A43,'Long Model'!$A$4:$J$4000,10) -> 304.37 | D43: =VLOOKUP(B43,'Long Model'!$A$4:$J$4000,10) -> 341.27 | E43: 100 | F43: 112.1234024 | H43: ='Short Model'!O43 -> 2649.78 | I43: ='Short Model'!P43 -> 2279.3 | J43: 100 | K43: 86.01846191 | L43: -13.98153809 | M43: 304.37 | N43: 341.27 | O43: 0.1212340244 | Q43: 341.27 | R43: 0 | S43: 341.27 | U43: 0 | V43: 39
A44: 2009-10-01 | B44: 2010-01-01 | C44: =VLOOKUP(A44,'Long Model'!$A$4:$J$4000,10) -> 341.27 | D44: =VLOOKUP(B44,'Long Model'!$A$4:$J$4000,10) -> 366.08 | E44: 100 | F44: 107.2699036 | H44: ='Short Model'!O44 -> 2279.3 | I44: ='Short Model'!P44 -> 2509.94 | J44: 100 | K44: 110.1188962 | L44: 10.11889615 | M44: 341.27 | N44: 366.08 | O44: 0.07269903595 | Q44: 366.08 | R44: 0 | S44: 366.08 | U44: 0 | V44: 40
A45: 2010-01-01 | B45: 2010-04-01 | C45: =VLOOKUP(A45,'Long Model'!$A$4:$J$4000,10) -> 366.08 | D45: =VLOOKUP(B45,'Long Model'!$A$4:$J$4000,10) -> 389.04 | E45: 100 | F45: 106.2718531 | H45: ='Short Model'!O45 -> 2509.94 | I45: ='Short Model'!P45 -> 2574.12 | J45: 100 | K45: 102.5570332 | L45: 2.557033236 | M45: 366.08 | N45: 389.04 | O45: 0.06271853147 | Q45: 389.04 | R45: 0 | S45: 389.04 | U45: 0 | V45: 41
A46: 2010-04-01 | B46: 2010-07-01 | C46: =VLOOKUP(A46,'Long Model'!$A$4:$J$4000,10) -> 389.04 | D46: =VLOOKUP(B46,'Long Model'!$A$4:$J$4000,10) -> 360.35 | E46: 100 | F46: 92.62543697 | H46: ='Short Model'!O46 -> 2574.12 | I46: ='Short Model'!P46 -> 2614.71 | J46: 100 | K46: 101.5768496 | L46: 1.576849564 | M46: 389.04 | N46: 360.35 | O46: -0.07374563027 | Q46: 360.35 | R46: 0 | S46: 360.35 | U46: 1 | V46: 42
A47: 2010-07-01 | B47: 2010-10-01 | C47: =VLOOKUP(A47,'Long Model'!$A$4:$J$4000,10) -> 360.35 | D47: =VLOOKUP(B47,'Long Model'!$A$4:$J$4000,10) -> 416.94 | E47: 100 | F47: 115.7041765 | H47: ='Short Model'!O47 -> 2614.71 | I47: ='Short Model'!P47 -> 2613.62 | J47: 100 | K47: 99.95831278 | L47: -0.04168722344 | M47: 360.35 | N47: 416.94 | O47: 0.157041765 | Q47: 416.94 | R47: 0 | S47: 416.94 | U47: 0 | V47: 43
A48: 2010-10-01 | B48: 2011-01-01 | C48: =VLOOKUP(A48,'Long Model'!$A$4:$J$4000,10) -> 416.94 | D48: =VLOOKUP(B48,'Long Model'!$A$4:$J$4000,10) -> 462.79 | E48: 100 | F48: 110.9967861 | H48: ='Short Model'!O48 -> 2613.62 | I48: ='Short Model'!P48 -> 2661.68 | J48: 100 | K48: 101.8388289 | L48: 1.838828904 | M48: 416.94 | N48: 462.79 | O48: 0.1099678611 | Q48: 462.79 | R48: 0 | S48: 462.79 | U48: 0 | V48: 44
A49: 2011-01-01 | B49: 2011-04-01 | C49: =VLOOKUP(A49,'Long Model'!$A$4:$J$4000,10) -> 462.79 | D49: =VLOOKUP(B49,'Long Model'!$A$4:$J$4000,10) -> 492.44 | E49: 100 | F49: 106.4067936 | H49: ='Short Model'!O49 -> 2661.68 | I49: ='Short Model'!P49 -> 2839.93 | J49: 100 | K49: 106.6968982 | L49: 6.6968982 | M49: 462.79 | N49: 492.44 | O49: 0.06406793578 | Q49: 492.44 | R49: 0 | S49: 492.44 | U49: 0 | V49: 45
A50: 2011-04-01 | B50: 2011-07-01 | C50: =VLOOKUP(A50,'Long Model'!$A$4:$J$4000,10) -> 492.44 | D50: =VLOOKUP(B50,'Long Model'!$A$4:$J$4000,10) -> 497.29 | E50: 100 | F50: 100.9848916 | H50: ='Short Model'!O50 -> 2839.93 | I50: ='Short Model'!P50 -> 2791.03 | J50: 100 | K50: 98.27812657 | L50: -1.721873426 | M50: 492.44 | N50: 497.29 | O50: 0.009848915604 | Q50: 497.29 | R50: 0 | S50: 497.29 | U50: 0 | V50: 46
A51: 2011-07-01 | B51: 2011-10-01 | C51: =VLOOKUP(A51,'Long Model'!$A$4:$J$4000,10) -> 497.29 | D51: =VLOOKUP(B51,'Long Model'!$A$4:$J$4000,10) -> 456.22 | E51: 100 | F51: 91.74123751 | H51: ='Short Model'!O51 -> 2791.03 | I51: ='Short Model'!P51 -> 3060.98 | J51: 100 | K51: 109.6720566 | L51: 9.672056553 | M51: 497.29 | N51: 456.22 | O51: -0.08258762493 | Q51: 456.22 | R51: 0 | S51: 456.22 | U51: 1 | V51: 47
A52: 2011-10-01 | B52: 2012-01-01 | C52: =VLOOKUP(A52,'Long Model'!$A$4:$J$4000,10) -> 456.22 | D52: =VLOOKUP(B52,'Long Model'!$A$4:$J$4000,10) -> 529.43 | E52: 100 | F52: 116.0470825 | H52: ='Short Model'!O52 -> 3060.98 | I52: ='Short Model'!P52 -> 2930.28 | J52: 100 | K52: 95.73012565 | L52: -4.269874354 | M52: 456.22 | N52: 529.43 | O52: 0.1604708255 | Q52: 529.43 | R52: 0 | S52: 529.43 | U52: 0 | V52: 48
A53: 2012-01-01 | B53: 2012-04-01 | C53: =VLOOKUP(A53,'Long Model'!$A$4:$J$4000,10) -> 529.43 | D53: =VLOOKUP(B53,'Long Model'!$A$4:$J$4000,10) -> 597.37 | E53: 100 | F53: 112.8326691 | H53: ='Short Model'!O53 -> 2930.28 | I53: ='Short Model'!P53 -> 2815.81 | J53: 100 | K53: 96.09354737 | L53: -3.906452626 | M53: 529.43 | N53: 597.37 | O53: 0.128326691 | Q53: 597.37 | R53: 0 | S53: 597.37 | U53: 0 | V53: 49
A54: 2012-04-01 | B54: 2012-07-01 | C54: =VLOOKUP(A54,'Long Model'!$A$4:$J$4000,10) -> 597.37 | D54: =VLOOKUP(B54,'Long Model'!$A$4:$J$4000,10) -> 604.12 | E54: 100 | F54: 101.129953 | H54: ='Short Model'!O54 -> 2815.81 | I54: ='Short Model'!P54 -> 2850.53 | J54: 100 | K54: 101.2330377 | L54: 1.23303774 | M54: 597.37 | N54: 604.12 | O54: 0.0112995296 | Q54: 604.12 | R54: 0 | S54: 604.12 | U54: 0 | V54: 50
A55: 2012-07-01 | B55: 2012-10-01 | C55: =VLOOKUP(A55,'Long Model'!$A$4:$J$4000,10) -> 604.12 | D55: =VLOOKUP(B55,'Long Model'!$A$4:$J$4000,10) -> 643.83 | E55: 100 | F55: 106.5731974 | H55: ='Short Model'!O55 -> 2850.53 | I55: ='Short Model'!P55 -> 2943.32 | J55: 100 | K55: 103.2551841 | L55: 3.255184124 | M55: 604.12 | N55: 643.83 | O55: 0.06573197378 | Q55: 643.83 | R55: 0 | S55: 643.83 | U55: 0 | V55: 51
A56: 2012-10-01 | B56: 2013-01-01 | C56: =VLOOKUP(A56,'Long Model'!$A$4:$J$4000,10) -> 643.83 | D56: =VLOOKUP(B56,'Long Model'!$A$4:$J$4000,10) -> 664.15 | E56: 100 | F56: 103.1561126 | H56: ='Short Model'!O56 -> 2943.32 | I56: ='Short Model'!P56 -> 2883.25 | J56: 100 | K56: 97.9591074 | L56: -2.040892597 | M56: 643.83 | N56: 664.15 | O56: 0.03156112638 | Q56: 664.15 | R56: 0 | S56: 664.15 | U56: 0 | V56: 52
A57: 2013-01-01 | B57: 2013-04-01 | C57: =VLOOKUP(A57,'Long Model'!$A$4:$J$4000,10) -> 664.15 | D57: =VLOOKUP(B57,'Long Model'!$A$4:$J$4000,10) -> 732.7 | E57: 100 | F57: 110.3214635 | H57: ='Short Model'!O57 -> 2883.25 | I57: ='Short Model'!P57 -> 2801.4 | J57: 100 | K57: 97.16118963 | L57: -2.83881037 | M57: 664.15 | N57: 732.7 | O57: 0.1032146352 | Q57: 732.7 | R57: 0 | S57: 732.7 | U57: 0 | V57: 53
A58: 2013-04-01 | B58: 2013-07-01 | C58: =VLOOKUP(A58,'Long Model'!$A$4:$J$4000,10) -> 732.7 | D58: =VLOOKUP(B58,'Long Model'!$A$4:$J$4000,10) -> 760.11 | E58: 100 | F58: 103.7409581 | H58: ='Short Model'!O58 -> 2801.4 | I58: ='Short Model'!P58 -> 2848.22 | J58: 100 | K58: 101.6713072 | L58: 1.671307204 | M58: 732.7 | N58: 760.11 | O58: 0.037409581 | Q58: 760.11 | R58: 0 | S58: 760.11 | U58: 0 | V58: 54
A59: 2013-07-01 | B59: 2013-10-01 | C59: =VLOOKUP(A59,'Long Model'!$A$4:$J$4000,10) -> 760.11 | D59: =VLOOKUP(B59,'Long Model'!$A$4:$J$4000,10) -> 788.28 | E59: 100 | F59: 103.7060425 | H59: ='Short Model'!O59 -> 2848.22 | I59: ='Short Model'!P59 -> 2877 | J59: 100 | K59: 101.0104557 | L59: 1.010455653 | M59: 760.11 | N59: 788.28 | O59: 0.03706042546 | Q59: 788.28 | R59: 0 | S59: 788.28 | U59: 0 | V59: 55
A60: 2013-10-01 | B60: 2014-01-01 | C60: =VLOOKUP(A60,'Long Model'!$A$4:$J$4000,10) -> 788.28 | D60: =VLOOKUP(B60,'Long Model'!$A$4:$J$4000,10) -> 863.79 | E60: 100 | F60: 109.5790836 | H60: ='Short Model'!O60 -> 2877 | I60: ='Short Model'!P60 -> 2966.58 | J60: 100 | K60: 103.1136601 | L60: 3.113660063 | M60: 788.28 | N60: 863.79 | O60: 0.09579083574 | Q60: 863.79 | R60: 0 | S60: 863.79 | U60: 0 | V60: 56 | AE60: 1-year Returns
A61: 2014-01-01 | B61: 2014-04-01 | C61: =VLOOKUP(A61,'Long Model'!$A$4:$J$4000,10) -> 863.79 | D61: =VLOOKUP(B61,'Long Model'!$A$4:$J$4000,10) -> 885.37 | E61: 100 | F61: 102.4982924 | H61: ='Short Model'!O61 -> 2966.58 | I61: ='Short Model'!P61 -> 2962.7 | J61: 100 | K61: 99.86920966 | L61: -0.1307903377 | M61: 863.79 | N61: 885.37 | O61: 0.02498292409 | Q61: 885.37 | R61: 0 | S61: 885.37 | U61: 0 | V61: 57 | AE61: hedged with Best(Short) vs. SPY 2000-13 Jan-2 to Dec-31
C62: from | D62: to | H62: from | I62: to | M62: from | N62: to | AF62: =AE60&'Long Model'!A1&Hedged!AE61 -> 1-year Returns Best(SPY-Cash) hedged with Best(Short) vs. SPY 2000-13 Jan-2 to Dec-31
C63: =A5 -> 2000-01-01 | D63: =B61 -> 2014-04-01 | H63: =C63 -> 2000-01-01 | I63: =B61 -> 2014-04-01 | M63: =C63 -> 2000-01-01 | N63: =D63 -> 2014-04-01 | AF63: =AC1&AD1&AE1&AG1 -> hedged 0.0% of long portfolio value, rebalanced every quarter | AJ63: 2013-12-31
C64: =-C5 -> -100 | D64: =D61 -> 885.37 | H64: =-H5 -> -100 | I64: =I61 -> 2962.7 | M64: =-M5 -> -100 | N64: =N61 -> 885.37 | AF64: HEDGED | AG64: SPY | AH64: 1999 | AI64: 0 | AJ64: =AJ67&AJ66 -> to Dec-31-2013 | AL64: HEDGED 0% | AM64: =AC1&AD1 -> hedged 0.0% | AN64: increase
B65: CAGR= | C65: =XIRR(C64:D64,C63:D63) -> 0.1652786076 | D65: =A4 -> Best(SPY-Cash) | G65: CAGR= | H65: =XIRR(H64:I64,H63:I63) -> 0.2682992995 | I65: =H4 -> Best(Short) Large-Cap | M65: =XIRR(M64:N64,M63:N63) -> 0.1652786076 | N65: CAGR | Z65: 2000-01-01 | AA65: =Z66 -> 2001-01-01 | AB65: =VLOOKUP(Z65,$A$5:$M$61,13) -> 100 | AC65: =VLOOKUP(AA65,$A$5:$M$61,13) -> 96.98 | AD65: =(AC65-AB65)/AB65 -> -0.0302 | AE65: -0.0302 | AF65: =AD65 -> -0.0302 | AG65: -0.0974 | AH65: 2000 | AI65: 0 | AJ65: =AJ63 -> 2013-12-31 | AL65: -0.0302 | AM65: =AF65 -> -0.0302 | AN65: =AM65-AL65 -> 0
M66: for | Z66: 2001-01-01 | AA66: =Z67 -> 2002-01-01 | AB66: =VLOOKUP(Z66,$A$5:$M$61,13) -> 96.98 | AC66: =VLOOKUP(AA66,$A$5:$M$61,13) -> 100.61 | AD66: =(AC66-AB66)/AB66 -> 0.03743039802 | AE66: 0.03743039802 | AF66: 0.03743039802 | AG66: -0.1013200948 | AH66: 2001 | AI66: 0 | AJ66: =TEXT(AJ65,"mmm-dd-yyyy") -> Dec-31-2013 | AL66: 0.03743039802 | AM66: =AF66 -> 0.03743039802 | AN66: =AM66-AL66 -> 0
B67: Long Model | H67: Short Model | M67: =H1 -> 0 | N67: short of long portfolio value | Z67: 2002-01-01 | AA67: 2003-01-01 | AB67: 100.61 | AC67: 104.94 | AD67: 0.04303747142 | AE67: 0.04303747142 | AF67: 0.04303747142 | AG67: -0.2240993789 | AH67: 2002 | AI67: 0 | AJ67: to | AL67: 0.04303747142 | AM67: 0.04303747142 | AN67: 0
B68: Weight | C68: Asset | D68: =A4 -> Best(SPY-Cash) | H68: Weight | I68: Asset | N68: rebalanced every quarter | Z68: 2003-01-01 | AA68: 2004-01-01 | AB68: 104.94 | AC68: 139.86 | AD68: 0.332761578 | AE68: 0.332761578 | AF68: 0.332761578 | AG68: 0.2418178998 | AH68: 2003 | AI68: 0 | AL68: 0.332761578 | AM68: 0.332761578 | AN68: 0
B69: 1 | C69: =A4 -> Best(SPY-Cash) | H69: =H1 -> 0 | I69: =H4 -> Best(Short) Large-Cap | Z69: 2004-01-01 | AA69: 2005-01-01 | AB69: 139.86 | AC69: 165.63 | AD69: 0.1842556843 | AE69: 0.1842556843 | AF69: 0.1842556843 | AG69: 0.1074731317 | AH69: 2004 | AI69: 0 | AL69: 0.1842556843 | AM69: 0.1842556843 | AN69: 0
M70: =O3 -> -0.08258762493 | N70: min. quarterly performance | Z70: 2005-01-01 | AA70: 2006-01-01 | AB70: 165.63 | AC70: 175.23 | AD70: 0.0579605144 | AE70: 0.0579605144 | AF70: 0.0579605144 | AG70: 0.04829609569 | AH70: 2005 | AI70: 0 | AL70: 0.0579605144 | AM70: 0.0579605144 | AN70: 0
M71: =O4 -> 0.04035009877 | N71: avg. quarterly performance | Z71: 2006-01-01 | AA71: 2007-01-01 | AB71: 175.23 | AC71: 201.41 | AD71: 0.1494036409 | AE71: 0.1494036409 | AF71: 0.1494036409 | AG71: 0.1584499462 | AH71: 2006 | AI71: 0 | AL71: 0.1494036409 | AM71: 0.1494036409 | AN71: 0
M72: =U3 -> 10 | N72: =U2 -> quarters with negative performance | Z72: 2007-01-01 | AA72: 2008-01-01 | AB72: 201.41 | AC72: 223.45 | AD72: 0.1094285289 | AE72: 0.1094285289 | AF72: 0.1094285289 | AG72: 0.05147742055 | AH72: 2007 | AI72: 0 | AL72: 0.1094285289 | AM72: 0.1094285289 | AN72: 0
M73: =W3-U3 -> 47 | N73: =X2 -> quarters with positive performance | Z73: 2008-01-01 | AA73: 2009-01-01 | AB73: 223.45 | AC73: 257.84 | AD73: 0.1539046767 | AE73: 0.1539046767 | AF73: 0.1539046767 | AG73: -0.3623963627 | AH73: 2008 | AI73: 0 | AL73: 0.1539046767 | AM73: 0.1539046767 | AN73: 0
D74: =N76 -> 0 | E74: =N77 -> 0.1652786076 | F74: =N78 -> -0.08258762493 | G74: =N79 -> 0.04035009877 | H74: =N80 -> 10 | I74: =N81 -> 47 | Z74: 2009-01-01 | AA74: 2010-01-01 | AB74: 257.84 | AC74: 366.08 | AD74: 0.4197952218 | AE74: 0.4197952218 | AF74: 0.4197952218 | AG74: 0.2265200869 | AH74: 2009 | AI74: 0 | AL74: 0.4197952218 | AM74: 0.4197952218 | AN74: 0
Z75: 2010-01-01 | AA75: 2011-01-01 | AB75: 366.08 | AC75: 462.79 | AD75: 0.264177229 | AE75: 0.264177229 | AF75: 0.264177229 | AG75: 0.1506030762 | AH75: 2010 | AI75: 0 | AL75: 0.264177229 | AM75: 0.264177229 | AN75: 0
M76: pct. short of long portfolio value= | N76: =M67 -> 0 | Z76: 2011-01-01 | AA76: 2012-01-01 | AB76: 462.79 | AC76: 529.43 | AD76: 0.143996197 | AE76: 0.143996197 | AF76: 0.143996197 | AG76: 0.01894595114 | AH76: 2011 | AI76: 0 | AL76: 0.143996197 | AM76: 0.143996197 | AN76: 0
M77: annualized return= | N77: =M65 -> 0.1652786076 | Z77: 2012-01-01 | AA77: 2013-01-01 | AB77: 529.43 | AC77: 664.15 | AD77: 0.2544623463 | AE77: 0.2544623463 | AF77: 0.2544623463 | AG77: 0.159886739 | AH77: 2012 | AI77: 0 | AL77: 0.2544623463 | AM77: 0.2544623463 | AN77: 0
M78: min. quarterly performance= | N78: =M70 -> -0.08258762493 | Z78: 2013-01-01 | AA78: 2014-01-01 | AB78: 664.15 | AC78: 863.79 | AD78: 0.3005947452 | AE78: 0.3005947452 | AF78: 0.3005947452 | AG78: 0.2899873056 | AH78: 2013 | AI78: 0 | AL78: 0.3005947452 | AM78: 0.3005947452 | AN78: 0
B79: hedged with | D79: ='Long Model'!A1&B79&'Short Model'!A1 -> Best(SPY-Cash) hedged with Best(Short) Large-Cap | M79: avg. quarterly performance= | N79: =M71 -> 0.04035009877 | Z79: 2014-01-01
D80: % Hedge | E80: An. Ret | F80: Min QP | G80: Avg QP | H80: # Neg Q | I80: # Pos Q | M80: quarters with negative performance= | N80: =M72 -> 10 | AC80: average of annual returns 2000 - 2013 = | AD80: =AVERAGE(AD65:AD78) -> 0.1729291594
D81: 0 | E81: 0.1652786076 | F81: -0.08258762493 | G81: 0.04035009877 | H81: 10 | I81: 47 | M81: quarters with positive performance= | N81: =M73 -> 47 | AC81: st dev | AD81: =STDEVP(AD65:AD78) -> 0.1234578455
D82: 0.1 | E82: 0.1980233133 | F82: -0.07291556837 | G82: 0.04746538639 | H82: 6 | I82: 51 | AC82: Sharpe of annual returns 2000 - 2013 = | AD82: =AD80/AD81 -> 1.400714217
D83: 0.2 | E83: 0.2303545296 | F83: -0.07059193114 | G83: 0.05458067401 | H83: 5 | I83: 52 | K83: =M76&TEXT(N76,"0%") -> pct. short of long portfolio value= 0%
D84: 0.3 | E84: 0.262312156 | F84: -0.06901508158 | G84: 0.06169596163 | H84: 5 | I84: 52 | K84: =M77&TEXT(N77,"0.0%") -> annualized return= 16.5%
D85: 0.4 | E85: 0.2939294875 | F85: -0.06743823201 | G85: 0.06881124925 | H85: 4 | I85: 53 | K85: =M78&TEXT(N78,"0.0%") -> min. quarterly performance= -8.3%
D86: 0.5 | E86: 0.3252344787 | F86: -0.06586138245 | G86: 0.07592653687 | H86: 4 | I86: 53 | K86: =M79&TEXT(N79,"0.0%") -> avg. quarterly performance= 4.0%
D87: 0.6 | E87: 0.3562507451 | F87: -0.06428453288 | G87: 0.08304182449 | H87: 5 | I87: 52 | K87: =M80&TEXT(N80,"0") -> quarters with negative performance= 10
D88: 0.7 | E88: 0.3869983017 | F88: -0.06270768332 | G88: 0.09015711211 | H88: 6 | I88: 51 | K88: =M81&TEXT(N81,"0") -> quarters with positive performance= 47
D89: 0.8 | E89: 0.4174941123 | F89: -0.06113083376 | G89: 0.09727239973 | H89: 8 | I89: 49
D90: 0.9 | E90: 0.4477526248 | F90: -0.05955398419 | G90: 0.1043876873 | H90: 8 | I90: 49 | K90: =AC80&TEXT(AD80,"0.00%") -> average of annual returns 2000 - 2013 = 17.29%
D91: 1 | E91: 0.4777861059 | F91: -0.05797713463 | G91: 0.111502975 | H91: 9 | I91: 48 | K91: =AC82&TEXT(AD82,"0.00") -> Sharpe of annual returns 2000 - 2013 = 1.40

Sheet Long Model
A1: Best(SPY-Cash)
A3: Date | B3: Cash | C3: Long MktVal | D3: Short MktVal | E3: Hedge MktVal | F3: Cash Added | G3: Total Equity | H3: Leverage Ratio | I3: SPY | J3: $100 Ret | K3: $100 Bench Ret
A4: 1999-12-31 | B4: 20000 | C4: 0 | D4: 0 | E4: 0 | F4: 20000 | G4: 20000 | H4: 0 | I4: 113.09 | J4: 100 | K4: 100
A5: 2000-01-03 | B5: 20000 | C5: 0 | D5: 0 | E5: 0 | F5: 0 | G5: 20000 | H5: 0 | I5: 111.98 | J5: 100 | K5: 99.02
A6: 2000-01-04 | B6: 20000 | C6: 0 | D6: 0 | E6: 0 | F6: 0 | G6: 20000 | H6: 0 | I6: 107.61 | J6: 100 | K6: 95.15
A7: 2000-01-05 | B7: 20000 | C7: 0 | D7: 0 | E7: 0 | F7: 0 | G7: 20000 | H7: 0 | I7: 107.8 | J7: 100 | K7: 95.32
A8: 2000-01-06 | B8: 20000 | C8: 0 | D8: 0 | E8: 0 | F8: 0 | G8: 20000 | H8: 0 | I8: 106.07 | J8: 100 | K8: 93.79
A9: 2000-01-07 | B9: 20000 | C9: 0 | D9: 0 | E9: 0 | F9: 0 | G9: 20000 | H9: 0 | I9: 112.23 | J9: 100 | K9: 99.23
A10: 2000-01-10 | B10: 20000 | C10: 0 | D10: 0 | E10: 0 | F10: 0 | G10: 20000 | H10: 0 | I10: 112.61 | J10: 100 | K10: 99.57
A11: 2000-01-11 | B11: 20000 | C11: 0 | D11: 0 | E11: 0 | F11: 0 | G11: 20000 | H11: 0 | I11: 111.12 | J11: 100 | K11: 98.26
A12: 2000-01-12 | B12: 20000 | C12: 0 | D12: 0 | E12: 0 | F12: 0 | G12: 20000 | H12: 0 | I12: 110.16 | J12: 100 | K12: 97.4
A13: 2000-01-13 | B13: 20000 | C13: 0 | D13: 0 | E13: 0 | F13: 0 | G13: 20000 | H13: 0 | I13: 111.65 | J13: 100 | K13: 98.72
A14: 2000-01-14 | B14: 20000 | C14: 0 | D14: 0 | E14: 0 | F14: 0 | G14: 20000 | H14: 0 | I14: 113.16 | J14: 100 | K14: 100.06
A15: 2000-01-18 | B15: 20000 | C15: 0 | D15: 0 | E15: 0 | F15: 0 | G15: 20000 | H15: 0 | I15: 112.27 | J15: 100 | K15: 99.28
A16: 2000-01-19 | B16: 20000 | C16: 0 | D16: 0 | E16: 0 | F16: 0 | G16: 20000 | H16: 0 | I16: 112.61 | J16: 100 | K16: 99.57
A17: 2000-01-20 | B17: 20000 | C17: 0 | D17: 0 | E17: 0 | F17: 0 | G17: 20000 | H17: 0 | I17: 111.46 | J17: 100 | K17: 98.55
A18: 2000-01-21 | B18: 20000 | C18: 0 | D18: 0 | E18: 0 | F18: 0 | G18: 20000 | H18: 0 | I18: 111.21 | J18: 100 | K18: 98.34
A19: 2000-01-24 | B19: 20000 | C19: 0 | D19: 0 | E19: 0 | F19: 0 | G19: 20000 | H19: 0 | I19: 108.06 | J19: 100 | K19: 95.55
A20: 2000-01-25 | B20: 20000 | C20: 0 | D20: 0 | E20: 0 | F20: 0 | G20: 20000 | H20: 0 | I20: 109.29 | J20: 100 | K20: 96.64
A21: 2000-01-26 | B21: 20000 | C21: 0 | D21: 0 | E21: 0 | F21: 0 | G21: 20000 | H21: 0 | I21: 108.42 | J21: 100 | K21: 95.87
A22: 2000-01-27 | B22: 20000 | C22: 0 | D22: 0 | E22: 0 | F22: 0 | G22: 20000 | H22: 0 | I22: 107.99 | J22: 100 | K22: 95.49
A23: 2000-01-28 | B23: 20000 | C23: 0 | D23: 0 | E23: 0 | F23: 0 | G23: 20000 | H23: 0 | I23: 104.62 | J23: 100 | K23: 92.51
A24: 2000-01-31 | B24: 20000 | C24: 0 | D24: 0 | E24: 0 | F24: 0 | G24: 20000 | H24: 0 | I24: 107.51 | J24: 100 | K24: 95.06
A25: 2000-02-01 | B25: 20000 | C25: 0 | D25: 0 | E25: 0 | F25: 0 | G25: 20000 | H25: 0 | I25: 108.52 | J25: 100 | K25: 95.96
A26: 2000-02-02 | B26: 20000 | C26: 0 | D26: 0 | E26: 0 | F26: 0 | G26: 20000 | H26: 0 | I26: 108.62 | J26: 100 | K26: 96.04
A27: 2000-02-03 | B27: 20000 | C27: 0 | D27: 0 | E27: 0 | F27: 0 | G27: 20000 | H27: 0 | I27: 110.25 | J27: 100 | K27: 97.49
A28: 2000-02-04 | B28: 20000 | C28: 0 | D28: 0 | E28: 0 | F28: 0 | G28: 20000 | H28: 0 | I28: 109.79 | J28: 100 | K28: 97.09
A29: 2000-02-07 | B29: 20000 | C29: 0 | D29: 0 | E29: 0 | F29: 0 | G29: 20000 | H29: 0 | I29: 109.63 | J29: 100 | K29: 96.94
A30: 2000-02-08 | B30: 20000 | C30: 0 | D30: 0 | E30: 0 | F30: 0 | G30: 20000 | H30: 0 | I30: 111.12 | J30: 100 | K30: 98.26
A31: 2000-02-09 | B31: 20000 | C31: 0 | D31: 0 | E31: 0 | F31: 0 | G31: 20000 | H31: 0 | I31: 108.78 | J31: 100 | K31: 96.19
A32: 2000-02-10 | B32: 20000 | C32: 0 | D32: 0 | E32: 0 | F32: 0 | G32: 20000 | H32: 0 | I32: 109 | J32: 100 | K32: 96.38
A33: 2000-02-11 | B33: 20000 | C33: 0 | D33: 0 | E33: 0 | F33: 0 | G33: 20000 | H33: 0 | I33: 106.79 | J33: 100 | K33: 94.43
A34: 2000-02-14 | B34: 20000 | C34: 0 | D34: 0 | E34: 0 | F34: 0 | G34: 20000 | H34: 0 | I34: 107.41 | J34: 100 | K34: 94.98
A35: 2000-02-15 | B35: 20000 | C35: 0 | D35: 0 | E35: 0 | F35: 0 | G35: 20000 | H35: 0 | I35: 108.64 | J35: 100 | K35: 96.06
A36: 2000-02-16 | B36: 20000 | C36: 0 | D36: 0 | E36: 0 | F36: 0 | G36: 20000 | H36: 0 | I36: 107.03 | J36: 100 | K36: 94.64
A37: 2000-02-17 | B37: 20000 | C37: 0 | D37: 0 | E37: 0 | F37: 0 | G37: 20000 | H37: 0 | I37: 106.47 | J37: 100 | K37: 94.15
A38: 2000-02-18 | B38: 20000 | C38: 0 | D38: 0 | E38: 0 | F38: 0 | G38: 20000 | H38: 0 | I38: 104.19 | J38: 100 | K38: 92.13
A39: 2000-02-22 | B39: 20000 | C39: 0 | D39: 0 | E39: 0 | F39: 0 | G39: 20000 | H39: 0 | I39: 103.92 | J39: 100 | K39: 91.89
A40: 2000-02-23 | B40: 20000 | C40: 0 | D40: 0 | E40: 0 | F40: 0 | G40: 20000 | H40: 0 | I40: 105.15 | J40: 100 | K40: 92.98
A41: 2000-02-24 | B41: 20000 | C41: 0 | D41: 0 | E41: 0 | F41: 0 | G41: 20000 | H41: 0 | I41: 103.03 | J41: 100 | K41: 91.11
A42: 2000-02-25 | B42: 20000 | C42: 0 | D42: 0 | E42: 0 | F42: 0 | G42: 20000 | H42: 0 | I42: 102.66 | J42: 100 | K42: 90.78
A43: 2000-02-28 | B43: 20000 | C43: 0 | D43: 0 | E43: 0 | F43: 0 | G43: 20000 | H43: 0 | I43: 104.81 | J43: 100 | K43: 92.68
A44: 2000-02-29 | B44: 20000 | C44: 0 | D44: 0 | E44: 0 | F44: 0 | G44: 20000 | H44: 0 | I44: 105.82 | J44: 100 | K44: 93.57
A45: 2000-03-01 | B45: 20000 | C45: 0 | D45: 0 | E45: 0 | F45: 0 | G45: 20000 | H45: 0 | I45: 106.59 | J45: 100 | K45: 94.26
A46: 2000-03-02 | B46: 20000 | C46: 0 | D46: 0 | E46: 0 | F46: 0 | G46: 20000 | H46: 0 | I46: 106.67 | J46: 100 | K46: 94.32
A47: 2000-03-03 | B47: 20000 | C47: 0 | D47: 0 | E47: 0 | F47: 0 | G47: 20000 | H47: 0 | I47: 108.66 | J47: 100 | K47: 96.09
A48: 2000-03-06 | B48: 20000 | C48: 0 | D48: 0 | E48: 0 | F48: 0 | G48: 20000 | H48: 0 | I48: 107.65 | J48: 100 | K48: 95.19
A49: 2000-03-07 | B49: 20000 | C49: 0 | D49: 0 | E49: 0 | F49: 0 | G49: 20000 | H49: 0 | I49: 105.52 | J49: 100 | K49: 93.31
A50: 2000-03-08 | B50: 20000 | C50: 0 | D50: 0 | E50: 0 | F50: 0 | G50: 20000 | H50: 0 | I50: 105.39 | J50: 100 | K50: 93.19
A51: 2000-03-09 | B51: 20000 | C51: 0 | D51: 0 | E51: 0 | F51: 0 | G51: 20000 | H51: 0 | I51: 108.47 | J51: 100 | K51: 95.91
A52: 2000-03-10 | B52: 20000 | C52: 0 | D52: 0 | E52: 0 | F52: 0 | G52: 20000 | H52: 0 | I52: 107.94 | J52: 100 | K52: 95.45
A53: 2000-03-13 | B53: 20000 | C53: 0 | D53: 0 | E53: 0 | F53: 0 | G53: 20000 | H53: 0 | I53: 106.72 | J53: 100 | K53: 94.36
A54: 2000-03-14 | B54: 20000 | C54: 0 | D54: 0 | E54: 0 | F54: 0 | G54: 20000 | H54: 0 | I54: 105.2 | J54: 100 | K54: 93.02
A55: 2000-03-15 | B55: 20000 | C55: 0 | D55: 0 | E55: 0 | F55: 0 | G55: 20000 | H55: 0 | I55: 107.65 | J55: 100 | K55: 95.19
A56: 2000-03-16 | B56: 20000 | C56: 0 | D56: 0 | E56: 0 | F56: 0 | G56: 20000 | H56: 0 | I56: 112.68 | J56: 100 | K56: 99.64
A57: 2000-03-17 | B57: 20000 | C57: 0 | D57: 0 | E57: 0 | F57: 0 | G57: 20000 | H57: 0 | I57: 113.43 | J57: 100 | K57: 100.3
A58: 2000-03-20 | B58: 20000 | C58: 0 | D58: 0 | E58: 0 | F58: 0 | G58: 20000 | H58: 0 | I58: 113.31 | J58: 100 | K58: 100.19
A59: 2000-03-21 | B59: 20000 | C59: 0 | D59: 0 | E59: 0 | F59: 0 | G59: 20000 | H59: 0 | I59: 115.16 | J59: 100 | K59: 101.83
A60: 2000-03-22 | B60: 20000 | C60: 0 | D60: 0 | E60: 0 | F60: 0 | G60: 20000 | H60: 0 | I60: 115.86 | J60: 100 | K60: 102.45
A61: 2000-03-23 | B61: 20000 | C61: 0 | D61: 0 | E61: 0 | F61: 0 | G61: 20000 | H61: 0 | I61: 117.72 | J61: 100 | K61: 104.09
A62: 2000-03-24 | B62: 20000 | C62: 0 | D62: 0 | E62: 0 | F62: 0 | G62: 20000 | H62: 0 | I62: 118.54 | J62: 100 | K62: 104.82
A63: 2000-03-27 | B63: 76.28 | C63: 19903.81 | D63: 0 | E63: 0 | F63: 0 | G63: 19980.1 | H63: 1 | I63: 117.29 | J63: 99.9 | K63: 103.71
A64: 2000-03-28 | B64: 76.28 | C64: 19789.19 | D64: 0 | E64: 0 | F64: 0 | G64: 19865.47 | H64: 1 | I64: 116.61 | J64: 99.33 | K64: 103.11
A65: 2000-03-29 | B65: 76.28 | C65: 19809.66 | D65: 0 | E65: 0 | F65: 0 | G65: 19885.94 | H65: 1 | I65: 116.73 | J65: 99.43 | K65: 103.22
A66: 2000-03-30 | B66: 76.28 | C66: 19478.06 | D66: 0 | E66: 0 | F66: 0 | G66: 19554.35 | H66: 1 | I66: 114.78 | J66: 97.77 | K66: 101.49
A67: 2000-03-31 | B67: 76.28 | C67: 19699.12 | D67: 0 | E67: 0 | F67: 0 | G67: 19775.41 | H67: 1 | I67: 116.08 | J67: 98.88 | K67: 102.64
A68: 2000-04-03 | B68: 76.28 | C68: 19813.75 | D68: 0 | E68: 0 | F68: 0 | G68: 19890.03 | H68: 1 | I68: 116.76 | J68: 99.45 | K68: 103.24
A69: 2000-04-04 | B69: 76.28 | C69: 19093.25 | D69: 0 | E69: 0 | F69: 0 | G69: 19169.53 | H69: 1 | I69: 112.51 | J69: 95.85 | K69: 99.49
A70: 2000-04-05 | B70: 76.28 | C70: 19543.56 | D70: 0 | E70: 0 | F70: 0 | G70: 19619.85 | H70: 1 | I70: 115.16 | J70: 98.1 | K70: 101.83
A71: 2000-04-06 | B71: 76.28 | C71: 19713.45 | D71: 0 | E71: 0 | F71: 0 | G71: 19789.74 | H71: 1 | I71: 116.16 | J71: 98.95 | K71: 102.72
A72: 2000-04-07 | B72: 76.28 | C72: 19838.31 | D72: 0 | E72: 0 | F72: 0 | G72: 19914.6 | H72: 1 | I72: 116.9 | J72: 99.57 | K72: 103.37
A73: 2000-04-10 | B73: 76.28 | C73: 19760.53 | D73: 0 | E73: 0 | F73: 0 | G73: 19836.81 | H73: 1 | I73: 116.44 | J73: 99.18 | K73: 102.96
A74: 2000-04-11 | B74: 76.28 | C74: 19703.22 | D74: 0 | E74: 0 | F74: 0 | G74: 19779.5 | H74: 1 | I74: 116.1 | J74: 98.9 | K74: 102.66
A75: 2000-04-12 | B75: 76.28 | C75: 19162.84 | D75: 0 | E75: 0 | F75: 0 | G75: 19239.13 | H75: 1 | I75: 112.92 | J75: 96.2 | K75: 99.85
A76: 2000-04-13 | B76: 76.28 | C76: 18896.75 | D76: 0 | E76: 0 | F76: 0 | G76: 18973.03 | H76: 1 | I76: 111.35 | J76: 94.87 | K76: 98.46
A77: 2000-04-14 | B77: 76.28 | C77: 18127.12 | D77: 0 | E77: 0 | F77: 0 | G77: 18203.41 | H77: 1 | I77: 106.82 | J77: 91.02 | K77: 94.45
A78: 2000-04-17 | B78: 76.28 | C78: 18438.25 | D78: 0 | E78: 0 | F78: 0 | G78: 18514.53 | H78: 1 | I78: 108.65 | J78: 92.57 | K78: 96.07
A79: 2000-04-18 | B79: 76.28 | C79: 18925.41 | D79: 0 | E79: 0 | F79: 0 | G79: 19001.69 | H79: 1 | I79: 111.52 | J79: 95.01 | K79: 98.61
A80: 2000-04-19 | B80: 76.28 | C80: 18749.38 | D80: 0 | E80: 0 | F80: 0 | G80: 18825.66 | H80: 1 | I80: 110.48 | J80: 94.13 | K80: 97.69
A81: 2000-04-20 | B81: 76.28 | C81: 18839.44 | D81: 0 | E81: 0 | F81: 0 | G81: 18915.72 | H81: 1 | I81: 111.01 | J81: 94.58 | K81: 98.16
A82: 2000-04-24 | B82: 76.28 | C82: 18634.75 | D82: 0 | E82: 0 | F82: 0 | G82: 18711.03 | H82: 1 | I82: 109.81 | J82: 93.56 | K82: 97.1
A83: 2000-04-25 | B83: 76.28 | C83: 19408.47 | D83: 0 | E83: 0 | F83: 0 | G83: 19484.75 | H83: 1 | I83: 114.37 | J83: 97.42 | K83: 101.13
A84: 2000-04-26 | B84: 76.28 | C84: 19189.45 | D84: 0 | E84: 0 | F84: 0 | G84: 19265.74 | H84: 1 | I84: 113.08 | J84: 96.33 | K84: 99.99
A85: 2000-04-27 | B85: 76.28 | C85: 19126 | D85: 0 | E85: 0 | F85: 0 | G85: 19202.28 | H85: 1 | I85: 112.7 | J85: 96.01 | K85: 99.66
A86: 2000-04-28 | B86: 76.28 | C86: 19007.28 | D86: 0 | E86: 0 | F86: 0 | G86: 19083.56 | H86: 1 | I86: 112 | J86: 95.42 | K86: 99.04
A87: 2000-05-01 | B87: 76.28 | C87: 19265.19 | D87: 0 | E87: 0 | F87: 0 | G87: 19341.47 | H87: 1 | I87: 113.52 | J87: 96.71 | K87: 100.38
A88: 2000-05-02 | B88: 76.28 | C88: 18880.38 | D88: 0 | E88: 0 | F88: 0 | G88: 18956.66 | H88: 1 | I88: 111.26 | J88: 94.78 | K88: 98.38
A89: 2000-05-03 | B89: 76.28 | C89: 18552.88 | D89: 0 | E89: 0 | F89: 0 | G89: 18629.16 | H89: 1 | I89: 109.33 | J89: 93.15 | K89: 96.67
A90: 2000-05-04 | B90: 76.28 | C90: 18577.44 | D90: 0 | E90: 0 | F90: 0 | G90: 18653.72 | H90: 1 | I90: 109.47 | J90: 93.27 | K90: 96.8
A91: 2000-05-05 | B91: 76.28 | C91: 18802.59 | D91: 0 | E91: 0 | F91: 0 | G91: 18878.88 | H91: 1 | I91: 110.8 | J91: 94.39 | K91: 97.97
A92: 2000-05-08 | B92: 76.28 | C92: 18661.36 | D92: 0 | E92: 0 | F92: 0 | G92: 18737.64 | H92: 1 | I92: 109.97 | J92: 93.69 | K92: 97.24
A93: 2000-05-09 | B93: 76.28 | C93: 18511.94 | D93: 0 | E93: 0 | F93: 0 | G93: 18588.22 | H93: 1 | I93: 109.08 | J93: 92.94 | K93: 96.46
A94: 2000-05-10 | B94: 76.28 | C94: 18094.38 | D94: 0 | E94: 0 | F94: 0 | G94: 18170.66 | H94: 1 | I94: 106.62 | J94: 90.85 | K94: 94.28
A95: 2000-05-11 | B95: 76.28 | C95: 18507.84 | D95: 0 | E95: 0 | F95: 0 | G95: 18584.13 | H95: 1 | I95: 109.06 | J95: 92.92 | K95: 96.44
A96: 2000-05-12 | B96: 76.28 | C96: 18708.44 | D96: 0 | E96: 0 | F96: 0 | G96: 18784.72 | H96: 1 | I96: 110.24 | J96: 93.92 | K96: 97.48
A97: 2000-05-15 | B97: 76.28 | C97: 19031.84 | D97: 0 | E97: 0 | F97: 0 | G97: 19108.13 | H97: 1 | I97: 112.15 | J97: 95.54 | K97: 99.17
A98: 2000-05-16 | B98: 76.28 | C98: 19199.69 | D98: 0 | E98: 0 | F98: 0 | G98: 19275.97 | H98: 1 | I98: 113.14 | J98: 96.38 | K98: 100.04
A99: 2000-05-17 | B99: 76.28 | C99: 19015.47 | D99: 0 | E99: 0 | F99: 0 | G99: 19091.75 | H99: 1 | I99: 112.05 | J99: 95.46 | K99: 99.08
A100: 2000-05-18 | B100: 76.28 | C100: 18839.44 | D100: 0 | E100: 0 | F100: 0 | G100: 18915.72 | H100: 1 | I100: 111.01 | J100: 94.58 | K100: 98.16
A101: 2000-05-19 | B101: 76.28 | C101: 18487.38 | D101: 0 | E101: 0 | F101: 0 | G101: 18563.66 | H101: 1 | I101: 108.94 | J101: 92.82 | K101: 96.33
A102: 2000-05-22 | B102: 76.28 | C102: 18348.19 | D102: 0 | E102: 0 | F102: 0 | G102: 18424.47 | H102: 1 | I102: 108.12 | J102: 92.12 | K102: 95.6
A103: 2000-05-23 | B103: 76.28 | C103: 18078 | D103: 0 | E103: 0 | F103: 0 | G103: 18154.28 | H103: 1 | I103: 106.53 | J103: 90.77 | K103: 94.2
A104: 2000-05-24 | B104: 76.28 | C104: 18372.75 | D104: 0 | E104: 0 | F104: 0 | G104: 18449.03 | H104: 1 | I104: 108.26 | J104: 92.25 | K104: 95.73
A105: 2000-05-25 | B105: 76.28 | C105: 18057.53 | D105: 0 | E105: 0 | F105: 0 | G105: 18133.81 | H105: 1 | I105: 106.41 | J105: 90.67 | K105: 94.09
A106: 2000-05-26 | B106: 76.28 | C106: 18078 | D106: 0 | E106: 0 | F106: 0 | G106: 18154.28 | H106: 1 | I106: 106.53 | J106: 90.77 | K106: 94.2
A107: 2000-05-30 | B107: 76.28 | C107: 18696.16 | D107: 0 | E107: 0 | F107: 0 | G107: 18772.44 | H107: 1 | I107: 110.17 | J107: 93.86 | K107: 97.42
A108: 2000-05-31 | B108: 76.28 | C108: 18708.44 | D108: 0 | E108: 0 | F108: 0 | G108: 18784.72 | H108: 1 | I108: 110.24 | J108: 93.92 | K108: 97.48
A109: 2000-06-01 | B109: 76.28 | C109: 19035.94 | D109: 0 | E109: 0 | F109: 0 | G109: 19112.22 | H109: 1 | I109: 112.17 | J109: 95.56 | K109: 99.19
A110: 2000-06-02 | B110: 76.28 | C110: 19367.53 | D110: 0 | E110: 0 | F110: 0 | G110: 19443.81 | H110: 1 | I110: 114.13 | J110: 97.22 | K110: 100.92
A111: 2000-06-05 | B111: 76.28 | C111: 19273.38 | D111: 0 | E111: 0 | F111: 0 | G111: 19349.66 | H111: 1 | I111: 113.57 | J111: 96.75 | K111: 100.42
A112: 2000-06-06 | B112: 76.28 | C112: 19187.41 | D112: 0 | E112: 0 | F112: 0 | G112: 19263.69 | H112: 1 | I112: 113.07 | J112: 96.32 | K112: 99.98
A113: 2000-06-07 | B113: 76.28 | C113: 19320.45 | D113: 0 | E113: 0 | F113: 0 | G113: 19396.74 | H113: 1 | I113: 113.85 | J113: 96.98 | K113: 100.67
A114: 2000-06-08 | B114: 76.28 | C114: 19244.72 | D114: 0 | E114: 0 | F114: 0 | G114: 19321 | H114: 1 | I114: 113.4 | J114: 96.6 | K114: 100.28
A115: 2000-06-09 | B115: 76.28 | C115: 19203.78 | D115: 0 | E115: 0 | F115: 0 | G115: 19280.06 | H115: 1 | I115: 113.16 | J115: 96.4 | K115: 100.06
A116: 2000-06-12 | B116: 76.28 | C116: 18978.62 | D116: 0 | E116: 0 | F116: 0 | G116: 19054.91 | H116: 1 | I116: 111.83 | J116: 95.27 | K116: 98.89
A117: 2000-06-13 | B117: 76.28 | C117: 19334.78 | D117: 0 | E117: 0 | F117: 0 | G117: 19411.06 | H117: 1 | I117: 113.93 | J117: 97.06 | K117: 100.74
A118: 2000-06-14 | B118: 76.28 | C118: 19367.53 | D118: 0 | E118: 0 | F118: 0 | G118: 19443.81 | H118: 1 | I118: 114.13 | J118: 97.22 | K118: 100.92
A119: 2000-06-15 | B119: 76.28 | C119: 19408.47 | D119: 0 | E119: 0 | F119: 0 | G119: 19484.75 | H119: 1 | I119: 114.37 | J119: 97.42 | K119: 101.13
A120: 2000-06-16 | B120: 76.28 | C120: 19203.78 | D120: 0 | E120: 0 | F120: 0 | G120: 19280.06 | H120: 1 | I120: 113.43 | J120: 96.4 | K120: 100.3
A121: 2000-06-19 | B121: 76.28 | C121: 19449.41 | D121: 0 | E121: 0 | F121: 0 | G121: 19525.69 | H121: 1 | I121: 114.88 | J121: 97.63 | K121: 101.58
A122: 2000-06-20 | B122: 76.28 | C122: 19379.81 | D122: 0 | E122: 0 | F122: 0 | G122: 19456.1 | H122: 1 | I122: 114.47 | J122: 97.28 | K122: 101.22
A123: 2000-06-21 | B123: 76.28 | C123: 19367.53 | D123: 0 | E123: 0 | F123: 0 | G123: 19443.81 | H123: 1 | I123: 114.4 | J123: 97.22 | K123: 101.15
A124: 2000-06-22 | B124: 76.28 | C124: 19076.88 | D124: 0 | E124: 0 | F124: 0 | G124: 19153.16 | H124: 1 | I124: 112.68 | J124: 95.77 | K124: 99.64
A125: 2000-06-23 | B125: 76.28 | C125: 18913.12 | D125: 0 | E125: 0 | F125: 0 | G125: 18989.41 | H125: 1 | I125: 111.71 | J125: 94.95 | K125: 98.78
A126: 2000-06-26 | B126: 76.28 | C126: 19156.7 | D126: 0 | E126: 0 | F126: 0 | G126: 19232.99 | H126: 1 | I126: 113.15 | J126: 96.16 | K126: 100.05
A127: 2000-06-27 | B127: 76.28 | C127: 19015.47 | D127: 0 | E127: 0 | F127: 0 | G127: 19091.75 | H127: 1 | I127: 112.32 | J127: 95.46 | K127: 99.31
A128: 2000-06-28 | B128: 76.28 | C128: 19068.69 | D128: 0 | E128: 0 | F128: 0 | G128: 19144.97 | H128: 1 | I128: 112.63 | J128: 95.72 | K128: 99.59
A129: 2000-06-29 | B129: 76.28 | C129: 18888.56 | D129: 0 | E129: 0 | F129: 0 | G129: 18964.85 | H129: 1 | I129: 111.57 | J129: 94.82 | K129: 98.65
A130: 2000-06-30 | B130: 19350.83 | C130: 0 | D130: 0 | E130: 0 | F130: 0 | G130: 19350.83 | H130: 0 | I130: 112.41 | J130: 96.75 | K130: 99.4
A131: 2000-07-03 | B131: 19350.83 | C131: 0 | D131: 0 | E131: 0 | F131: 0 | G131: 19350.83 | H131: 0 | I131: 113.96 | J131: 96.75 | K131: 100.77
A132: 2000-07-05 | B132: 19350.83 | C132: 0 | D132: 0 | E132: 0 | F132: 0 | G132: 19350.83 | H132: 0 | I132: 111.91 | J132: 96.75 | K132: 98.95
A133: 2000-07-06 | B133: 19350.83 | C133: 0 | D133: 0 | E133: 0 | F133: 0 | G133: 19350.83 | H133: 0 | I133: 112.78 | J133: 96.75 | K133: 99.72
A134: 2000-07-07 | B134: 19350.83 | C134: 0 | D134: 0 | E134: 0 | F134: 0 | G134: 19350.83 | H134: 0 | I134: 114.59 | J134: 96.75 | K134: 101.32
A135: 2000-07-10 | B135: 19350.83 | C135: 0 | D135: 0 | E135: 0 | F135: 0 | G135: 19350.83 | H135: 0 | I135: 114.4 | J135: 96.75 | K135: 101.15
A136: 2000-07-11 | B136: 19350.83 | C136: 0 | D136: 0 | E136: 0 | F136: 0 | G136: 19350.83 | H136: 0 | I136: 114.64 | J136: 96.75 | K136: 101.37
A137: 2000-07-12 | B137: 19350.83 | C137: 0 | D137: 0 | E137: 0 | F137: 0 | G137: 19350.83 | H137: 0 | I137: 115.39 | J137: 96.75 | K137: 102.03
A138: 2000-07-13 | B138: 19350.83 | C138: 0 | D138: 0 | E138: 0 | F138: 0 | G138: 19350.83 | H138: 0 | I138: 115.89 | J138: 96.75 | K138: 102.48
A139: 2000-07-14 | B139: 19350.83 | C139: 0 | D139: 0 | E139: 0 | F139: 0 | G139: 19350.83 | H139: 0 | I139: 117.03 | J139: 96.75 | K139: 103.48
A140: 2000-07-17 | B140: 19350.83 | C140: 0 | D140: 0 | E140: 0 | F140: 0 | G140: 19350.83 | H140: 0 | I140: 116.84 | J140: 96.75 | K140: 103.31
A141: 2000-07-18 | B141: 19350.83 | C141: 0 | D141: 0 | E141: 0 | F141: 0 | G141: 19350.83 | H141: 0 | I141: 115.88 | J141: 96.75 | K141: 102.47
A142: 2000-07-19 | B142: 19350.83 | C142: 0 | D142: 0 | E142: 0 | F142: 0 | G142: 19350.83 | H142: 0 | I142: 115.05 | J142: 96.75 | K142: 101.73
A143: 2000-07-20 | B143: 19350.83 | C143: 0 | D143: 0 | E143: 0 | F143: 0 | G143: 19350.83 | H143: 0 | I143: 116.55 | J143: 96.75 | K143: 103.06
A144: 2000-07-21 | B144: 19350.83 | C144: 0 | D144: 0 | E144: 0 | F144: 0 | G144: 19350.83 | H144: 0 | I144: 114.27 | J144: 96.75 | K144: 101.05
A145: 2000-07-24 | B145: 19350.83 | C145: 0 | D145: 0 | E145: 0 | F145: 0 | G145: 19350.83 | H145: 0 | I145: 113.62 | J145: 96.75 | K145: 100.47
A146: 2000-07-25 | B146: 19350.83 | C146: 0 | D146: 0 | E146: 0 | F146: 0 | G146: 19350.83 | H146: 0 | I146: 113.98 | J146: 96.75 | K146: 100.79
A147: 2000-07-26 | B147: 19350.83 | C147: 0 | D147: 0 | E147: 0 | F147: 0 | G147: 19350.83 | H147: 0 | I147: 112.87 | J147: 96.75 | K147: 99.81
A148: 2000-07-27 | B148: 19350.83 | C148: 0 | D148: 0 | E148: 0 | F148: 0 | G148: 19350.83 | H148: 0 | I148: 112.49 | J148: 96.75 | K148: 99.46
A149: 2000-07-28 | B149: 19350.83 | C149: 0 | D149: 0 | E149: 0 | F149: 0 | G149: 19350.83 | H149: 0 | I149: 109.95 | J149: 96.75 | K149: 97.22
A150: 2000-07-31 | B150: 19396.47 | C150: 0 | D150: 0 | E150: 0 | F150: 0 | G150: 19396.47 | H150: 0 | I150: 110.58 | J150: 96.98 | K150: 97.77
A151: 2000-08-01 | B151: 19396.47 | C151: 0 | D151: 0 | E151: 0 | F151: 0 | G151: 19396.47 | H151: 0 | I151: 111.32 | J151: 96.98 | K151: 98.44
A152: 2000-08-02 | B152: 19396.47 | C152: 0 | D152: 0 | E152: 0 | F152: 0 | G152: 19396.47 | H152: 0 | I152: 111.88 | J152: 96.98 | K152: 98.93
A153: 2000-08-03 | B153: 19396.47 | C153: 0 | D153: 0 | E153: 0 | F153: 0 | G153: 19396.47 | H153: 0 | I153: 112.65 | J153: 96.98 | K153: 99.61
A154: 2000-08-04 | B154: 19396.47 | C154: 0 | D154: 0 | E154: 0 | F154: 0 | G154: 19396.47 | H154: 0 | I154: 113.26 | J154: 96.98 | K154: 100.15
A155: 2000-08-07 | B155: 19396.47 | C155: 0 | D155: 0 | E155: 0 | F155: 0 | G155: 19396.47 | H155: 0 | I155: 114.61 | J155: 96.98 | K155: 101.35
A156: 2000-08-08 | B156: 19396.47 | C156: 0 | D156: 0 | E156: 0 | F156: 0 | G156: 19396.47 | H156: 0 | I156: 115.05 | J156: 96.98 | K156: 101.73
A157: 2000-08-09 | B157: 19396.47 | C157: 0 | D157: 0 | E157: 0 | F157: 0 | G157: 19396.47 | H157: 0 | I157: 114.08 | J157: 96.98 | K157: 100.88
A158: 2000-08-10 | B158: 19396.47 | C158: 0 | D158: 0 | E158: 0 | F158: 0 | G158: 19396.47 | H158: 0 | I158: 113.53 | J158: 96.98 | K158: 100.38
A159: 2000-08-11 | B159: 19396.47 | C159: 0 | D159: 0 | E159: 0 | F159: 0 | G159: 19396.47 | H159: 0 | I159: 114 | J159: 96.98 | K159: 100.8
A160: 2000-08-14 | B160: 19396.47 | C160: 0 | D160: 0 | E160: 0 | F160: 0 | G160: 19396.47 | H160: 0 | I160: 115.51 | J160: 96.98 | K160: 102.14
A161: 2000-08-15 | B161: 19396.47 | C161: 0 | D161: 0 | E161: 0 | F161: 0 | G161: 19396.47 | H161: 0 | I161: 115.41 | J161: 96.98 | K161: 102.05
A162: 2000-08-16 | B162: 19396.47 | C162: 0 | D162: 0 | E162: 0 | F162: 0 | G162: 19396.47 | H162: 0 | I162: 115 | J162: 96.98 | K162: 101.69
A163: 2000-08-17 | B163: 19396.47 | C163: 0 | D163: 0 | E163: 0 | F163: 0 | G163: 19396.47 | H163: 0 | I163: 116.21 | J163: 96.98 | K163: 102.76
A164: 2000-08-18 | B164: 19396.47 | C164: 0 | D164: 0 | E164: 0 | F164: 0 | G164: 19396.47 | H164: 0 | I164: 115.82 | J164: 96.98 | K164: 102.41
A165: 2000-08-21 | B165: 19396.47 | C165: 0 | D165: 0 | E165: 0 | F165: 0 | G165: 19396.47 | H165: 0 | I165: 116.5 | J165: 96.98 | K165: 103.01
A166: 2000-08-22 | B166: 19396.47 | C166: 0 | D166: 0 | E166: 0 | F166: 0 | G166: 19396.47 | H166: 0 | I166: 116.31 | J166: 96.98 | K166: 102.84
A167: 2000-08-23 | B167: 19396.47 | C167: 0 | D167: 0 | E167: 0 | F167: 0 | G167: 19396.47 | H167: 0 | I167: 116.72 | J167: 96.98 | K167: 103.21
A168: 2000-08-24 | B168: 19396.47 | C168: 0 | D168: 0 | E168: 0 | F168: 0 | G168: 19396.47 | H168: 0 | I168: 117.08 | J168: 96.98 | K168: 103.53
A169: 2000-08-25 | B169: 19396.47 | C169: 0 | D169: 0 | E169: 0 | F169: 0 | G169: 19396.47 | H169: 0 | I169: 117.03 | J169: 96.98 | K169: 103.48
A170: 2000-08-28 | B170: 19396.47 | C170: 0 | D170: 0 | E170: 0 | F170: 0 | G170: 19396.47 | H170: 0 | I170: 117.43 | J170: 96.98 | K170: 103.84
A171: 2000-08-29 | B171: 19396.47 | C171: 0 | D171: 0 | E171: 0 | F171: 0 | G171: 19396.47 | H171: 0 | I171: 117.45 | J171: 96.98 | K171: 103.86
A172: 2000-08-30 | B172: 19396.47 | C172: 0 | D172: 0 | E172: 0 | F172: 0 | G172: 19396.47 | H172: 0 | I172: 116.33 | J172: 96.98 | K172: 102.86
A173: 2000-08-31 | B173: 19396.47 | C173: 0 | D173: 0 | E173: 0 | F173: 0 | G173: 19396.47 | H173: 0 | I173: 117.88 | J173: 96.98 | K173: 104.23
A174: 2000-09-01 | B174: 19396.47 | C174: 0 | D174: 0 | E174: 0 | F174: 0 | G174: 19396.47 | H174: 0 | I174: 117.9 | J174: 96.98 | K174: 104.25
A175: 2000-09-05 | B175: 19396.47 | C175: 0 | D175: 0 | E175: 0 | F175: 0 | G175: 19396.47 | H175: 0 | I175: 117.06 | J175: 96.98 | K175: 103.5
A176: 2000-09-06 | B176: 19396.47 | C176: 0 | D176: 0 | E176: 0 | F176: 0 | G176: 19396.47 | H176: 0 | I176: 115.89 | J176: 96.98 | K176: 102.48
A177: 2000-09-07 | B177: 19396.47 | C177: 0 | D177: 0 | E177: 0 | F177: 0 | G177: 19396.47 | H177: 0 | I177: 116.72 | J177: 96.98 | K177: 103.21
A178: 2000-09-08 | B178: 19396.47 | C178: 0 | D178: 0 | E178: 0 | F178: 0 | G178: 19396.47 | H178: 0 | I178: 115.92 | J178: 96.98 | K178: 102.5
A179: 2000-09-11 | B179: 19396.47 | C179: 0 | D179: 0 | E179: 0 | F179: 0 | G179: 19396.47 | H179: 0 | I179: 115.75 | J179: 96.98 | K179: 102.35
A180: 2000-09-12 | B180: 19396.47 | C180: 0 | D180: 0 | E180: 0 | F180: 0 | G180: 19396.47 | H180: 0 | I180: 114.88 | J180: 96.98 | K180: 101.58
A181: 2000-09-13 | B181: 19396.47 | C181: 0 | D181: 0 | E181: 0 | F181: 0 | G181: 19396.47 | H181: 0 | I181: 115.21 | J181: 96.98 | K181: 101.87
A182: 2000-09-14 | B182: 19396.47 | C182: 0 | D182: 0 | E182: 0 | F182: 0 | G182: 19396.47 | H182: 0 | I182: 114.88 | J182: 96.98 | K182: 101.58
A183: 2000-09-15 | B183: 19396.47 | C183: 0 | D183: 0 | E183: 0 | F183: 0 | G183: 19396.47 | H183: 0 | I183: 113.33 | J183: 96.98 | K183: 100.21
A184: 2000-09-18 | B184: 19396.47 | C184: 0 | D184: 0 | E184: 0 | F184: 0 | G184: 19396.47 | H184: 0 | I184: 112.21 | J184: 96.98 | K184: 99.22
A185: 2000-09-19 | B185: 19396.47 | C185: 0 | D185: 0 | E185: 0 | F185: 0 | G185: 19396.47 | H185: 0 | I185: 113.23 | J185: 96.98 | K185: 100.12
A186: 2000-09-20 | B186: 19396.47 | C186: 0 | D186: 0 | E186: 0 | F186: 0 | G186: 19396.47 | H186: 0 | I186: 112.39 | J186: 96.98 | K186: 99.38
A187: 2000-09-21 | B187: 19396.47 | C187: 0 | D187: 0 | E187: 0 | F187: 0 | G187: 19396.47 | H187: 0 | I187: 112.62 | J187: 96.98 | K187: 99.59
A188: 2000-09-22 | B188: 19396.47 | C188: 0 | D188: 0 | E188: 0 | F188: 0 | G188: 19396.47 | H188: 0 | I188: 112.7 | J188: 96.98 | K188: 99.65
A189: 2000-09-25 | B189: 19396.47 | C189: 0 | D189: 0 | E189: 0 | F189: 0 | G189: 19396.47 | H189: 0 | I189: 111.83 | J189: 96.98 | K189: 98.88
A190: 2000-09-26 | B190: 19396.47 | C190: 0 | D190: 0 | E190: 0 | F190: 0 | G190: 19396.47 | H190: 0 | I190: 110.47 | J190: 96.98 | K190: 97.68
A191: 2000-09-27 | B191: 19396.47 | C191: 0 | D191: 0 | E191: 0 | F191: 0 | G191: 19396.47 | H191: 0 | I191: 111.05 | J191: 96.98 | K191: 98.19
A192: 2000-09-28 | B192: 19396.47 | C192: 0 | D192: 0 | E192: 0 | F192: 0 | G192: 19396.47 | H192: 0 | I192: 113.35 | J192: 96.98 | K192: 100.23
A193: 2000-09-29 | B193: 19396.47 | C193: 0 | D193: 0 | E193: 0 | F193: 0 | G193: 19396.47 | H193: 0 | I193: 111.41 | J193: 96.98 | K193: 98.52
A194: 2000-10-02 | B194: 19396.47 | C194: 0 | D194: 0 | E194: 0 | F194: 0 | G194: 19396.47 | H194: 0 | I194: 111.58 | J194: 96.98 | K194: 98.67
A195: 2000-10-03 | B195: 19396.47 | C195: 0 | D195: 0 | E195: 0 | F195: 0 | G195: 19396.47 | H195: 0 | I195: 110.54 | J195: 96.98 | K195: 97.74
A196: 2000-10-04 | B196: 19396.47 | C196: 0 | D196: 0 | E196: 0 | F196: 0 | G196: 19396.47 | H196: 0 | I196: 111.46 | J196: 96.98 | K196: 98.56
A197: 2000-10-05 | B197: 19396.47 | C197: 0 | D197: 0 | E197: 0 | F197: 0 | G197: 19396.47 | H197: 0 | I197: 111.85 | J197: 96.98 | K197: 98.9
A198: 2000-10-06 | B198: 19396.47 | C198: 0 | D198: 0 | E198: 0 | F198: 0 | G198: 19396.47 | H198: 0 | I198: 109.43 | J198: 96.98 | K198: 96.76
A199: 2000-10-09 | B199: 19396.47 | C199: 0 | D199: 0 | E199: 0 | F199: 0 | G199: 19396.47 | H199: 0 | I199: 108.6 | J199: 96.98 | K199: 96.03
A200: 2000-10-10 | B200: 19396.47 | C200: 0 | D200: 0 | E200: 0 | F200: 0 | G200: 19396.47 | H200: 0 | I200: 106.81 | J200: 96.98 | K200: 94.44
A201: 2000-10-11 | B201: 19396.47 | C201: 0 | D201: 0 | E201: 0 | F201: 0 | G201: 19396.47 | H201: 0 | I201: 105.91 | J201: 96.98 | K201: 93.65
... 3414 more rows

Sheet Short Model
A1: Best(Short) Large-Cap
A3: Date | B3: Cash | C3: Long MktVal | D3: Short MktVal | E3: Hedge MktVal | F3: Cash Added | G3: Total Equity | H3: Leverage Ratio | I3: SPY | J3: $100 Ret | K3: $100 Bench Ret
A4: 1999-12-31 | B4: 100000 | C4: 0 | D4: 0 | E4: 0 | F4: 100000 | G4: 100000 | H4: 0 | I4: 113.09 | J4: 100 | K4: 100 | M4: Best(Short) Large-Cap
A5: 2000-01-03 | B5: 100000 | C5: 0 | D5: 0 | E5: 0 | F5: 0 | G5: 100000 | H5: 0 | I5: 111.98 | J5: 100 | K5: 99.02 | M5: 2000-01-01 | N5: =M6 -> 2000-04-01 | O5: =VLOOKUP(M5,$A$4:$J$3601,10) -> 100 | P5: =VLOOKUP(N5,$A$4:$J$3601,10) -> 98.69 | Q5: 100 | R5: =P5/O5*Q5 -> 98.69
A6: 2000-01-04 | B6: 100000 | C6: 0 | D6: 0 | E6: 0 | F6: 0 | G6: 100000 | H6: 0 | I6: 107.61 | J6: 100 | K6: 95.15 | M6: 2000-04-01 | N6: =M7 -> 2000-07-01 | O6: =VLOOKUP(M6,$A$4:$J$3601,10) -> 98.69 | P6: 125.54 | Q6: 100 | R6: =P6/O6*Q6 -> 127.2064039
A7: 2000-01-05 | B7: 100000 | C7: 0 | D7: 0 | E7: 0 | F7: 0 | G7: 100000 | H7: 0 | I7: 107.8 | J7: 100 | K7: 95.32 | M7: 2000-07-01 | N7: 2000-10-01 | O7: 125.54 | P7: 134.4 | Q7: 100 | R7: =P7/O7*Q7 -> 107.0575116
A8: 2000-01-06 | B8: 100000 | C8: 0 | D8: 0 | E8: 0 | F8: 0 | G8: 100000 | H8: 0 | I8: 106.07 | J8: 100 | K8: 93.79 | M8: 2000-10-01 | N8: 2001-01-02 | O8: 134.4 | P8: 210.87 | Q8: 100 | R8: 156.8973214
A9: 2000-01-07 | B9: 100000 | C9: 0 | D9: 0 | E9: 0 | F9: 0 | G9: 100000 | H9: 0 | I9: 112.23 | J9: 100 | K9: 99.23 | M9: 2001-01-02 | N9: 2001-04-01 | O9: 210.87 | P9: 298.55 | Q9: 100 | R9: 141.5801205
A10: 2000-01-10 | B10: 139863.77 | C10: 0 | D10: -39923.19 | E10: 0 | F10: 0 | G10: 99940.58 | H10: 0.4 | I10: 112.61 | J10: 99.94 | K10: 99.57 | M10: 2001-04-01 | N10: 2001-07-01 | O10: 298.55 | P10: 338.51 | Q10: 100 | R10: 113.3846927
A11: 2000-01-11 | B11: 139863.77 | C11: 0 | D11: -40747 | E11: 0 | F11: 0 | G11: 99116.77 | H11: 0.41 | I11: 111.12 | J11: 99.12 | K11: 98.26 | M11: 2001-07-01 | N11: 2001-10-01 | O11: 338.51 | P11: 568.94 | Q11: 100 | R11: 168.0718443
A12: 2000-01-12 | B12: 139863.77 | C12: 0 | D12: -39312 | E12: 0 | F12: 0 | G12: 100551.77 | H12: 0.39 | I12: 110.16 | J12: 100.55 | K12: 97.4 | M12: 2001-10-01 | N12: 2002-01-01 | O12: 568.94 | P12: 564.45 | Q12: 100 | R12: 99.21081309
A13: 2000-01-13 | B13: 139863.77 | C13: 0 | D13: -40251.75 | E13: 0 | F13: 0 | G13: 99612.02 | H13: 0.4 | I13: 111.65 | J13: 99.61 | K13: 98.72 | M13: 2002-01-01 | N13: 2002-04-01 | O13: 564.45 | P13: 621.12 | Q13: 100 | R13: 110.0398618
A14: 2000-01-14 | B14: 139863.77 | C14: 0 | D14: -40589.94 | E14: 0 | F14: 0 | G14: 99273.83 | H14: 0.41 | I14: 113.16 | J14: 99.27 | K14: 100.06 | M14: 2002-04-01 | N14: 2002-07-01 | O14: 621.12 | P14: 791.57 | Q14: 100 | R14: 127.4423622
A15: 2000-01-18 | B15: 155648.52 | C15: 0 | D15: -58334.5 | E15: 0 | F15: 0 | G15: 97314.02 | H15: 0.6 | I15: 112.27 | J15: 97.31 | K15: 99.28 | M15: 2002-07-01 | N15: 2002-10-01 | O15: 791.57 | P15: 966.51 | Q15: 100 | R15: 122.1003828
A16: 2000-01-19 | B16: 155648.52 | C16: 0 | D16: -58604.19 | E16: 0 | F16: 0 | G16: 97044.33 | H16: 0.6 | I16: 112.61 | J16: 97.04 | K16: 99.57 | M16: 2002-10-01 | N16: 2003-01-01 | O16: 966.51 | P16: 1076.45 | Q16: 100 | R16: 111.374947
A17: 2000-01-20 | B17: 155648.52 | C17: 0 | D17: -58732.81 | E17: 0 | F17: 0 | G17: 96915.7 | H17: 0.61 | I17: 111.46 | J17: 96.92 | K17: 98.55 | M17: 2003-01-01 | N17: 2003-04-01 | O17: 1076.45 | P17: 1081.98 | Q17: 100 | R17: 100.5137257
A18: 2000-01-21 | B18: 155648.52 | C18: 0 | D18: -58067.62 | E18: 0 | F18: 0 | G18: 97580.89 | H18: 0.6 | I18: 111.21 | J18: 97.58 | K18: 98.34 | M18: 2003-04-01 | N18: 2003-07-01 | O18: 1081.98 | P18: 1091.49 | Q18: 100 | R18: 100.8789442
A19: 2000-01-24 | B19: 138408.14 | C19: 0 | D19: -39434 | E19: 0 | F19: 0 | G19: 98974.14 | H19: 0.4 | I19: 108.06 | J19: 98.97 | K19: 95.55 | M19: 2003-07-01 | N19: 2003-10-01 | O19: =VLOOKUP(M19,$A$4:$J$3601,10) -> 1091.49 | P19: =VLOOKUP(N19,$A$4:$J$3601,10) -> 1090.22 | Q19: 100 | R19: =P19/O19*Q19 -> 99.88364529
A20: 2000-01-25 | B20: 138408.14 | C20: 0 | D20: -38605 | E20: 0 | F20: 0 | G20: 99803.14 | H20: 0.39 | I20: 109.29 | J20: 99.8 | K20: 96.64 | M20: 2003-10-01 | N20: 2004-01-01 | O20: 1090.22 | P20: 1055.6 | Q20: 100 | R20: 96.82449414
A21: 2000-01-26 | B21: 138408.14 | C21: 0 | D21: -37354 | E21: 0 | F21: 0 | G21: 101054.14 | H21: 0.37 | I21: 108.42 | J21: 101.05 | K21: 95.87 | M21: 2004-01-01 | N21: 2004-04-01 | O21: 1055.6 | P21: 1018.45 | Q21: 100 | R21: 96.4806745
A22: 2000-01-27 | B22: 138408.14 | C22: 0 | D22: -36744 | E22: 0 | F22: 0 | G22: 101664.14 | H22: 0.36 | I22: 107.99 | J22: 101.66 | K22: 95.49 | M22: 2004-04-01 | N22: 2004-07-01 | O22: 1018.45 | P22: 1064.48 | Q22: 100 | R22: 104.5196131
A23: 2000-01-28 | B23: 138408.14 | C23: 0 | D23: -35272 | E23: 0 | F23: 0 | G23: 103136.14 | H23: 0.34 | I23: 104.62 | J23: 103.14 | K23: 92.51 | M23: 2004-07-01 | N23: 2004-10-01 | O23: 1064.48 | P23: 1129.87 | Q23: 100 | R23: 106.1429055
A24: 2000-01-31 | B24: 103409.18 | C24: 0 | D24: 0 | E24: 0 | F24: 0 | G24: 103409.18 | H24: 0 | I24: 107.51 | J24: 103.41 | K24: 95.06 | M24: 2004-10-01 | N24: 2005-01-01 | O24: 1129.87 | P24: 1022.09 | Q24: 100 | R24: 90.46084948
A25: 2000-02-01 | B25: 103409.18 | C25: 0 | D25: 0 | E25: 0 | F25: 0 | G25: 103409.18 | H25: 0 | I25: 108.52 | J25: 103.41 | K25: 95.96 | M25: 2005-01-01 | N25: 2005-04-01 | O25: 1022.09 | P25: 1081.02 | Q25: 100 | R25: 105.7656371
A26: 2000-02-02 | B26: 103409.18 | C26: 0 | D26: 0 | E26: 0 | F26: 0 | G26: 103409.18 | H26: 0 | I26: 108.62 | J26: 103.41 | K26: 96.04 | M26: 2005-04-01 | N26: 2005-07-01 | O26: 1081.02 | P26: 1031.88 | Q26: 100 | R26: 95.45429317
A27: 2000-02-03 | B27: 103409.18 | C27: 0 | D27: 0 | E27: 0 | F27: 0 | G27: 103409.18 | H27: 0 | I27: 110.25 | J27: 103.41 | K27: 97.49 | M27: 2005-07-01 | N27: 2005-10-01 | O27: 1031.88 | P27: 1012.67 | Q27: 100 | R27: 98.13834942
A28: 2000-02-04 | B28: 103409.18 | C28: 0 | D28: 0 | E28: 0 | F28: 0 | G28: 103409.18 | H28: 0 | I28: 109.79 | J28: 103.41 | K28: 97.09 | M28: 2005-10-01 | N28: 2006-01-01 | O28: 1012.67 | P28: 1013.5 | Q28: 100 | R28: 100.0819615
A29: 2000-02-07 | B29: 165170.11 | C29: 0 | D29: -61849.5 | E29: 0 | F29: 0 | G29: 103320.61 | H29: 0.6 | I29: 109.63 | J29: 103.32 | K29: 96.94 | M29: 2006-01-01 | N29: 2006-04-01 | O29: 1013.5 | P29: 1026.18 | Q29: 100 | R29: 101.25111
A30: 2000-02-08 | B30: 165170.11 | C30: 0 | D30: -63139.44 | E30: 0 | F30: 0 | G30: 102030.67 | H30: 0.62 | I30: 111.12 | J30: 102.03 | K30: 98.26 | M30: 2006-04-01 | N30: 2006-07-01 | O30: 1026.18 | P30: 1040.96 | Q30: 100 | R30: 101.4402931
A31: 2000-02-09 | B31: 165170.11 | C31: 0 | D31: -63179.12 | E31: 0 | F31: 0 | G31: 101990.98 | H31: 0.62 | I31: 108.78 | J31: 101.99 | K31: 96.19 | M31: 2006-07-01 | N31: 2006-10-01 | O31: 1040.96 | P31: 1044.41 | Q31: 100 | R31: 100.3314248
A32: 2000-02-10 | B32: 165170.11 | C32: 0 | D32: -63971.38 | E32: 0 | F32: 0 | G32: 101198.73 | H32: 0.63 | I32: 109 | J32: 101.2 | K32: 96.38 | M32: 2006-10-01 | N32: 2007-01-01 | O32: 1044.41 | P32: 1054.95 | Q32: 100 | R32: 101.0091822
A33: 2000-02-11 | B33: 165170.11 | C33: 0 | D33: -62691.31 | E33: 0 | F33: 0 | G33: 102478.8 | H33: 0.61 | I33: 106.79 | J33: 102.48 | K33: 94.43 | M33: 2007-01-01 | N33: 2007-04-01 | O33: 1054.95 | P33: 1034.79 | Q33: 100 | R33: 98.08900896
A34: 2000-02-14 | B34: 142485.23 | C34: 0 | D34: -40652.62 | E34: 0 | F34: 0 | G34: 101832.61 | H34: 0.4 | I34: 107.41 | J34: 101.83 | K34: 94.98 | M34: 2007-04-01 | N34: 2007-07-01 | O34: 1034.79 | P34: 1112.56 | Q34: 100 | R34: 107.5155346
A35: 2000-02-15 | B35: 142485.23 | C35: 0 | D35: -40873.25 | E35: 0 | F35: 0 | G35: 101611.98 | H35: 0.4 | I35: 108.64 | J35: 101.61 | K35: 96.06 | M35: 2007-07-01 | N35: 2007-10-01 | O35: 1112.56 | P35: 1135.22 | Q35: 100 | R35: 102.0367441
A36: 2000-02-16 | B36: 142485.23 | C36: 0 | D36: -39761 | E36: 0 | F36: 0 | G36: 102724.23 | H36: 0.39 | I36: 107.03 | J36: 102.72 | K36: 94.64 | M36: 2007-10-01 | N36: 2008-01-01 | O36: 1135.22 | P36: 1256.18 | Q36: 100 | R36: 110.6552034
A37: 2000-02-17 | B37: 142485.23 | C37: 0 | D37: -38100.5 | E37: 0 | F37: 0 | G37: 104384.73 | H37: 0.37 | I37: 106.47 | J37: 104.38 | K37: 94.15 | M37: 2008-01-01 | N37: 2008-04-01 | O37: 1256.18 | P37: 1369.14 | Q37: 100 | R37: 108.9923419
A38: 2000-02-18 | B38: 142485.23 | C38: 0 | D38: -38742.25 | E38: 0 | F38: 0 | G38: 103742.98 | H38: 0.37 | I38: 104.19 | J38: 103.74 | K38: 92.13 | M38: 2008-04-01 | N38: 2008-07-01 | O38: 1369.14 | P38: 1404.82 | Q38: 100 | R38: 102.6060155
A39: 2000-02-22 | B39: 125515.16 | C39: 0 | D39: -20900 | E39: 0 | F39: 0 | G39: 104615.16 | H39: 0.2 | I39: 103.92 | J39: 104.62 | K39: 91.89 | M39: 2008-07-01 | N39: 2008-10-01 | O39: 1404.82 | P39: 1459.98 | Q39: 100 | R39: 103.9264817
A40: 2000-02-23 | B40: 125515.16 | C40: 0 | D40: -20640 | E40: 0 | F40: 0 | G40: 104875.16 | H40: 0.2 | I40: 105.15 | J40: 104.88 | K40: 92.98 | M40: 2008-10-01 | N40: 2009-01-01 | O40: 1459.98 | P40: 2443.34 | Q40: 100 | R40: 167.3543473
A41: 2000-02-24 | B41: 125515.16 | C41: 0 | D41: -21900 | E41: 0 | F41: 0 | G41: 103615.16 | H41: 0.21 | I41: 103.03 | J41: 103.62 | K41: 91.11 | M41: 2009-01-01 | N41: 2009-04-01 | O41: 2443.34 | P41: 2612.39 | Q41: 100 | R41: 106.9188079
A42: 2000-02-25 | B42: 125515.16 | C42: 0 | D42: -21440 | E42: 0 | F42: 0 | G42: 104075.16 | H42: 0.21 | I42: 102.66 | J42: 104.08 | K42: 90.78 | M42: 2009-04-01 | N42: 2009-07-01 | O42: 2612.39 | P42: 2649.78 | Q42: 100 | R42: 101.4312564
A43: 2000-02-28 | B43: 164961.98 | C43: 0 | D43: -61718.38 | E43: 0 | F43: 0 | G43: 103243.61 | H43: 0.6 | I43: 104.81 | J43: 103.24 | K43: 92.68 | M43: 2009-07-01 | N43: 2009-10-01 | O43: 2649.78 | P43: 2279.3 | Q43: 100 | R43: 86.01846191
A44: 2000-02-29 | B44: 164961.98 | C44: 0 | D44: -62837.69 | E44: 0 | F44: 0 | G44: 102124.3 | H44: 0.62 | I44: 105.82 | J44: 102.12 | K44: 93.57 | M44: 2009-10-01 | N44: 2010-01-01 | O44: 2279.3 | P44: 2509.94 | Q44: 100 | R44: 110.1188962
A45: 2000-03-01 | B45: 164961.98 | C45: 0 | D45: -66786.5 | E45: 0 | F45: 0 | G45: 98175.48 | H45: 0.68 | I45: 106.59 | J45: 98.18 | K45: 94.26 | M45: 2010-01-01 | N45: 2010-04-01 | O45: 2509.94 | P45: 2574.12 | Q45: 100 | R45: 102.5570332
A46: 2000-03-02 | B46: 164961.98 | C46: 0 | D46: -68580 | E46: 0 | F46: 0 | G46: 96381.98 | H46: 0.71 | I46: 106.67 | J46: 96.38 | K46: 94.32 | M46: 2010-04-01 | N46: 2010-07-01 | O46: 2574.12 | P46: 2614.71 | Q46: 100 | R46: 101.5768496
A47: 2000-03-03 | B47: 164961.98 | C47: 0 | D47: -71040 | E47: 0 | F47: 0 | G47: 93921.98 | H47: 0.76 | I47: 108.66 | J47: 93.92 | K47: 96.09 | M47: 2010-07-01 | N47: 2010-10-01 | O47: 2614.71 | P47: 2613.62 | Q47: 100 | R47: 99.95831278
A48: 2000-03-06 | B48: 173978.31 | C48: 0 | D48: -86796.88 | E48: 0 | F48: 0 | G48: 87181.44 | H48: 1 | I48: 107.65 | J48: 87.18 | K48: 95.19 | M48: 2010-10-01 | N48: 2011-01-01 | O48: 2613.62 | P48: 2661.68 | Q48: 100 | R48: 101.8388289
A49: 2000-03-07 | B49: 173978.31 | C49: 0 | D49: -87016.31 | E49: 0 | F49: 0 | G49: 86962 | H49: 1 | I49: 105.52 | J49: 86.96 | K49: 93.31 | M49: 2011-01-01 | N49: 2011-04-01 | O49: 2661.68 | P49: 2839.93 | Q49: 100 | R49: 106.6968982
A50: 2000-03-08 | B50: 173978.31 | C50: 0 | D50: -87181.12 | E50: 0 | F50: 0 | G50: 86797.19 | H50: 1 | I50: 105.39 | J50: 86.8 | K50: 93.19 | M50: 2011-04-01 | N50: 2011-07-01 | O50: 2839.93 | P50: 2791.03 | Q50: 100 | R50: 98.27812657
A51: 2000-03-09 | B51: 173978.31 | C51: 0 | D51: -91289.19 | E51: 0 | F51: 0 | G51: 82689.12 | H51: 1.1 | I51: 108.47 | J51: 82.69 | K51: 95.91 | M51: 2011-07-01 | N51: 2011-10-01 | O51: 2791.03 | P51: 3060.98 | Q51: 100 | R51: 109.6720566
A52: 2000-03-10 | B52: 173978.31 | C52: 0 | D52: -93174.55 | E52: 0 | F52: 0 | G52: 80803.77 | H52: 1.15 | I52: 107.94 | J52: 80.8 | K52: 95.45 | M52: 2011-10-01 | N52: 2012-01-01 | O52: 3060.98 | P52: 2930.28 | Q52: 100 | R52: 95.73012565
A53: 2000-03-13 | B53: 118863.24 | C53: 0 | D53: -33843.5 | E53: 0 | F53: 0 | G53: 85019.74 | H53: 0.4 | I53: 106.72 | J53: 85.02 | K53: 94.36 | M53: 2012-01-01 | N53: 2012-04-01 | O53: 2930.28 | P53: 2815.81 | Q53: 100 | R53: 96.09354737
A54: 2000-03-14 | B54: 118863.24 | C54: 0 | D54: -32740.06 | E54: 0 | F54: 0 | G54: 86123.18 | H54: 0.38 | I54: 105.2 | J54: 86.12 | K54: 93.02 | M54: 2012-04-01 | N54: 2012-07-01 | O54: 2815.81 | P54: 2850.53 | Q54: 100 | R54: 101.2330377
A55: 2000-03-15 | B55: 118863.24 | C55: 0 | D55: -30895.31 | E55: 0 | F55: 0 | G55: 87967.93 | H55: 0.35 | I55: 107.65 | J55: 87.97 | K55: 95.19 | M55: 2012-07-01 | N55: 2012-10-01 | O55: 2850.53 | P55: 2943.32 | Q55: 100 | R55: 103.2551841
A56: 2000-03-16 | B56: 118863.24 | C56: 0 | D56: -30481.69 | E56: 0 | F56: 0 | G56: 88381.55 | H56: 0.34 | I56: 112.68 | J56: 88.38 | K56: 99.64 | M56: 2012-10-01 | N56: 2013-01-01 | O56: 2943.32 | P56: 2883.25 | Q56: 100 | R56: 97.9591074
A57: 2000-03-17 | B57: 118863.24 | C57: 0 | D57: -32349.25 | E57: 0 | F57: 0 | G57: 86513.99 | H57: 0.37 | I57: 113.43 | J57: 86.51 | K57: 100.3 | M57: 2013-01-01 | N57: 2013-04-01 | O57: 2883.25 | P57: 2801.4 | Q57: 100 | R57: 97.16118963
A58: 2000-03-20 | B58: 104874.23 | C58: 0 | D58: -17433.25 | E58: 0 | F58: 0 | G58: 87440.98 | H58: 0.2 | I58: 113.31 | J58: 87.44 | K58: 100.19 | M58: 2013-04-01 | N58: 2013-07-01 | O58: 2801.4 | P58: 2848.22 | Q58: 100 | R58: 101.6713072
A59: 2000-03-21 | B59: 104874.23 | C59: 0 | D59: -17399 | E59: 0 | F59: 0 | G59: 87475.23 | H59: 0.2 | I59: 115.16 | J59: 87.48 | K59: 101.83 | M59: 2013-07-01 | N59: 2013-10-01 | O59: 2848.22 | P59: 2877 | Q59: 100 | R59: 101.0104557
A60: 2000-03-22 | B60: 104874.23 | C60: 0 | D60: -17279.12 | E60: 0 | F60: 0 | G60: 87595.11 | H60: 0.2 | I60: 115.86 | J60: 87.6 | K60: 102.45 | M60: 2013-10-01 | N60: 2014-01-01 | O60: 2877 | P60: 2966.58 | Q60: 100 | R60: 103.1136601
A61: 2000-03-23 | B61: 104874.23 | C61: 0 | D61: -17570.25 | E61: 0 | F61: 0 | G61: 87303.98 | H61: 0.2 | I61: 117.72 | J61: 87.3 | K61: 104.09 | M61: 2014-01-01 | N61: 2014-01-04 | O61: 2966.58 | P61: 2962.7 | Q61: 100 | R61: 99.86920966
A62: 2000-03-24 | B62: 104874.23 | C62: 0 | D62: -17638.75 | E62: 0 | F62: 0 | G62: 87235.48 | H62: 0.2 | I62: 118.54 | J62: 87.24 | K62: 104.82
A63: 2000-03-27 | B63: 156322.16 | C63: 0 | D63: -69205.06 | E63: 0 | F63: 0 | G63: 87117.09 | H63: 0.79 | I63: 117.29 | J63: 87.12 | K63: 103.71
A64: 2000-03-28 | B64: 156322.16 | C64: 0 | D64: -66043.56 | E64: 0 | F64: 0 | G64: 90278.59 | H64: 0.73 | I64: 116.61 | J64: 90.28 | K64: 103.11
A65: 2000-03-29 | B65: 156322.16 | C65: 0 | D65: -61408.69 | E65: 0 | F65: 0 | G65: 94913.47 | H65: 0.65 | I65: 116.73 | J65: 94.91 | K65: 103.22
A66: 2000-03-30 | B66: 156322.16 | C66: 0 | D66: -60527.56 | E66: 0 | F66: 0 | G66: 95794.59 | H66: 0.63 | I66: 114.78 | J66: 95.79 | K66: 101.49
A67: 2000-03-31 | B67: 156322.16 | C67: 0 | D67: -57632.38 | E67: 0 | F67: 0 | G67: 98689.78 | H67: 0.58 | I67: 116.08 | J67: 98.69 | K67: 102.64
A68: 2000-04-03 | B68: 105586.34 | C68: 0 | D68: 0 | E68: 0 | F68: 0 | G68: 105586.34 | H68: 0 | I68: 116.76 | J68: 105.59 | K68: 103.24
A69: 2000-04-04 | B69: 105586.34 | C69: 0 | D69: 0 | E69: 0 | F69: 0 | G69: 105586.34 | H69: 0 | I69: 112.51 | J69: 105.59 | K69: 99.49
A70: 2000-04-05 | B70: 105586.34 | C70: 0 | D70: 0 | E70: 0 | F70: 0 | G70: 105586.34 | H70: 0 | I70: 115.16 | J70: 105.59 | K70: 101.83
A71: 2000-04-06 | B71: 105586.34 | C71: 0 | D71: 0 | E71: 0 | F71: 0 | G71: 105586.34 | H71: 0 | I71: 116.16 | J71: 105.59 | K71: 102.72
A72: 2000-04-07 | B72: 105586.34 | C72: 0 | D72: 0 | E72: 0 | F72: 0 | G72: 105586.34 | H72: 0 | I72: 116.9 | J72: 105.59 | K72: 103.37
A73: 2000-04-10 | B73: 210645.77 | C73: 0 | D73: -105210 | E73: 0 | F73: 0 | G73: 105435.77 | H73: 1 | I73: 116.44 | J73: 105.44 | K73: 102.96
A74: 2000-04-11 | B74: 210645.77 | C74: 0 | D74: -99525.12 | E74: 0 | F74: 0 | G74: 111120.64 | H74: 0.9 | I74: 116.1 | J74: 111.12 | K74: 102.66
A75: 2000-04-12 | B75: 210645.77 | C75: 0 | D75: -91513.06 | E75: 0 | F75: 0 | G75: 119132.7 | H75: 0.77 | I75: 112.92 | J75: 119.13 | K75: 99.85
A76: 2000-04-13 | B76: 210645.77 | C76: 0 | D76: -86901.42 | E76: 0 | F76: 0 | G76: 123744.34 | H76: 0.7 | I76: 111.35 | J76: 123.74 | K76: 98.46
A77: 2000-04-14 | B77: 210645.77 | C77: 0 | D77: -79644.03 | E77: 0 | F77: 0 | G77: 131001.73 | H77: 0.61 | I77: 106.82 | J77: 131 | K77: 94.45
A78: 2000-04-17 | B78: 127079.03 | C78: 0 | D78: 0 | E78: 0 | F78: 0 | G78: 127079.03 | H78: 0 | I78: 108.65 | J78: 127.08 | K78: 96.07
A79: 2000-04-18 | B79: 127079.03 | C79: 0 | D79: 0 | E79: 0 | F79: 0 | G79: 127079.03 | H79: 0 | I79: 111.52 | J79: 127.08 | K79: 98.61
A80: 2000-04-19 | B80: 127079.03 | C80: 0 | D80: 0 | E80: 0 | F80: 0 | G80: 127079.03 | H80: 0 | I80: 110.48 | J80: 127.08 | K80: 97.69
A81: 2000-04-20 | B81: 127079.03 | C81: 0 | D81: 0 | E81: 0 | F81: 0 | G81: 127079.03 | H81: 0 | I81: 111.01 | J81: 127.08 | K81: 98.16
A82: 2000-04-24 | B82: 152430.72 | C82: 0 | D82: -25387.81 | E82: 0 | F82: 0 | G82: 127042.91 | H82: 0.2 | I82: 109.81 | J82: 127.04 | K82: 97.1
A83: 2000-04-25 | B83: 152430.72 | C83: 0 | D83: -26610.88 | E83: 0 | F83: 0 | G83: 125819.84 | H83: 0.21 | I83: 114.37 | J83: 125.82 | K83: 101.13
A84: 2000-04-26 | B84: 152430.72 | C84: 0 | D84: -27278 | E84: 0 | F84: 0 | G84: 125152.72 | H84: 0.22 | I84: 113.08 | J84: 125.15 | K84: 99.99
A85: 2000-04-27 | B85: 152430.72 | C85: 0 | D85: -27240.94 | E85: 0 | F85: 0 | G85: 125189.78 | H85: 0.22 | I85: 112.7 | J85: 125.19 | K85: 99.66
A86: 2000-04-28 | B86: 152430.72 | C86: 0 | D86: -27759.81 | E86: 0 | F86: 0 | G86: 124670.91 | H86: 0.22 | I86: 112 | J86: 124.67 | K86: 99.04
A87: 2000-05-01 | B87: 256256.89 | C87: 0 | D87: -128087 | E87: 0 | F87: 0 | G87: 128169.89 | H87: 1 | I87: 113.52 | J87: 128.17 | K87: 100.38
A88: 2000-05-02 | B88: 256256.89 | C88: 0 | D88: -115641.25 | E88: 0 | F88: 0 | G88: 140615.64 | H88: 0.82 | I88: 111.26 | J88: 140.62 | K88: 98.38
A89: 2000-05-03 | B89: 256256.89 | C89: 0 | D89: -117612.81 | E89: 0 | F89: 0 | G89: 138644.08 | H89: 0.85 | I89: 109.33 | J89: 138.64 | K89: 96.67
A90: 2000-05-04 | B90: 256256.89 | C90: 0 | D90: -119367.19 | E90: 0 | F90: 0 | G90: 136889.7 | H90: 0.87 | I90: 109.47 | J90: 136.89 | K90: 96.8
A91: 2000-05-05 | B91: 256256.89 | C91: 0 | D91: -118579.31 | E91: 0 | F91: 0 | G91: 137677.58 | H91: 0.86 | I91: 110.8 | J91: 137.68 | K91: 97.97
A92: 2000-05-08 | B92: 142420.44 | C92: 0 | D92: 0 | E92: 0 | F92: 0 | G92: 142420.44 | H92: 0 | I92: 109.97 | J92: 142.42 | K92: 97.24
A93: 2000-05-09 | B93: 142420.44 | C93: 0 | D93: 0 | E93: 0 | F93: 0 | G93: 142420.44 | H93: 0 | I93: 109.08 | J93: 142.42 | K93: 96.46
A94: 2000-05-10 | B94: 142420.44 | C94: 0 | D94: 0 | E94: 0 | F94: 0 | G94: 142420.44 | H94: 0 | I94: 106.62 | J94: 142.42 | K94: 94.28
A95: 2000-05-11 | B95: 142420.44 | C95: 0 | D95: 0 | E95: 0 | F95: 0 | G95: 142420.44 | H95: 0 | I95: 109.06 | J95: 142.42 | K95: 96.44
A96: 2000-05-12 | B96: 142420.44 | C96: 0 | D96: 0 | E96: 0 | F96: 0 | G96: 142420.44 | H96: 0 | I96: 110.24 | J96: 142.42 | K96: 97.48
A97: 2000-05-15 | B97: 170793.14 | C97: 0 | D97: -28413 | E97: 0 | F97: 0 | G97: 142380.14 | H97: 0.2 | I97: 112.15 | J97: 142.38 | K97: 99.17
A98: 2000-05-16 | B98: 170793.14 | C98: 0 | D98: -28297.69 | E98: 0 | F98: 0 | G98: 142495.45 | H98: 0.2 | I98: 113.14 | J98: 142.5 | K98: 100.04
A99: 2000-05-17 | B99: 170793.14 | C99: 0 | D99: -28251.56 | E99: 0 | F99: 0 | G99: 142541.58 | H99: 0.2 | I99: 112.05 | J99: 142.54 | K99: 99.08
A100: 2000-05-18 | B100: 170793.14 | C100: 0 | D100: -28044 | E100: 0 | F100: 0 | G100: 142749.14 | H100: 0.2 | I100: 111.01 | J100: 142.75 | K100: 98.16
A101: 2000-05-19 | B101: 170793.14 | C101: 0 | D101: -26521.88 | E101: 0 | F101: 0 | G101: 144271.27 | H101: 0.18 | I101: 108.94 | J101: 144.27 | K101: 96.33
A102: 2000-05-22 | B102: 173541.17 | C102: 0 | D102: -28901.38 | E102: 0 | F102: 0 | G102: 144639.8 | H102: 0.2 | I102: 108.12 | J102: 144.64 | K102: 95.6
A103: 2000-05-23 | B103: 173541.17 | C103: 0 | D103: -28237.56 | E103: 0 | F103: 0 | G103: 145303.61 | H103: 0.19 | I103: 106.53 | J103: 145.3 | K103: 94.2
A104: 2000-05-24 | B104: 173541.17 | C104: 0 | D104: -29360.94 | E104: 0 | F104: 0 | G104: 144180.23 | H104: 0.2 | I104: 108.26 | J104: 144.18 | K104: 95.73
A105: 2000-05-25 | B105: 173541.17 | C105: 0 | D105: -28390.75 | E105: 0 | F105: 0 | G105: 145150.42 | H105: 0.2 | I105: 106.41 | J105: 145.15 | K105: 94.09
A106: 2000-05-26 | B106: 173541.17 | C106: 0 | D106: -29054.56 | E106: 0 | F106: 0 | G106: 144486.61 | H106: 0.2 | I106: 106.53 | J106: 144.49 | K106: 94.2
A107: 2000-05-30 | B107: 168172.12 | C107: 0 | D107: -27945 | E107: 0 | F107: 0 | G107: 140227.12 | H107: 0.2 | I107: 110.17 | J107: 140.23 | K107: 97.42
A108: 2000-05-31 | B108: 168172.12 | C108: 0 | D108: -28022.62 | E108: 0 | F108: 0 | G108: 140149.5 | H108: 0.2 | I108: 110.24 | J108: 140.15 | K108: 97.48
A109: 2000-06-01 | B109: 168172.12 | C109: 0 | D109: -31994.44 | E109: 0 | F109: 0 | G109: 136177.69 | H109: 0.23 | I109: 112.17 | J109: 136.18 | K109: 99.19
A110: 2000-06-02 | B110: 168172.12 | C110: 0 | D110: -37751.62 | E110: 0 | F110: 0 | G110: 130420.5 | H110: 0.29 | I110: 114.13 | J110: 130.42 | K110: 100.92
A111: 2000-06-05 | B111: 236000.53 | C111: 0 | D111: -104796.5 | E111: 0 | F111: 0 | G111: 131204.03 | H111: 0.8 | I111: 113.57 | J111: 131.2 | K111: 100.42
A112: 2000-06-06 | B112: 236000.53 | C112: 0 | D112: -102771 | E112: 0 | F112: 0 | G112: 133229.53 | H112: 0.77 | I112: 113.07 | J112: 133.23 | K112: 99.98
A113: 2000-06-07 | B113: 236000.53 | C113: 0 | D113: -106621.88 | E113: 0 | F113: 0 | G113: 129378.66 | H113: 0.82 | I113: 113.85 | J113: 129.38 | K113: 100.67
A114: 2000-06-08 | B114: 236000.53 | C114: 0 | D114: -108021.94 | E114: 0 | F114: 0 | G114: 127978.59 | H114: 0.84 | I114: 113.4 | J114: 127.98 | K114: 100.28
A115: 2000-06-09 | B115: 236000.53 | C115: 0 | D115: -110587.56 | E115: 0 | F115: 0 | G115: 125412.97 | H115: 0.88 | I115: 113.16 | J115: 125.41 | K115: 100.06
A116: 2000-06-12 | B116: 206530.25 | C116: 0 | D116: -77389.56 | E116: 0 | F116: 0 | G116: 129140.69 | H116: 0.6 | I116: 111.83 | J116: 129.14 | K116: 98.89
A117: 2000-06-13 | B117: 206530.25 | C117: 0 | D117: -80002.56 | E117: 0 | F117: 0 | G117: 126527.69 | H117: 0.63 | I117: 113.93 | J117: 126.53 | K117: 100.74
A118: 2000-06-14 | B118: 206530.25 | C118: 0 | D118: -74670 | E118: 0 | F118: 0 | G118: 131860.25 | H118: 0.57 | I118: 114.13 | J118: 131.86 | K118: 100.92
A119: 2000-06-15 | B119: 206530.25 | C119: 0 | D119: -76352 | E119: 0 | F119: 0 | G119: 130178.25 | H119: 0.59 | I119: 114.37 | J119: 130.18 | K119: 101.13
A120: 2000-06-16 | B120: 206530.25 | C120: 0 | D120: -75990 | E120: 0 | F120: 0 | G120: 130540.25 | H120: 0.58 | I120: 113.43 | J120: 130.54 | K120: 100.3
A121: 2000-06-19 | B121: 153500.95 | C121: 0 | D121: -25540.31 | E121: 0 | F121: 0 | G121: 127960.64 | H121: 0.2 | I121: 114.88 | J121: 127.96 | K121: 101.58
A122: 2000-06-20 | B122: 153500.95 | C122: 0 | D122: -23515.31 | E122: 0 | F122: 0 | G122: 129985.64 | H122: 0.18 | I122: 114.47 | J122: 129.99 | K122: 101.22
A123: 2000-06-21 | B123: 153500.95 | C123: 0 | D123: -24603.75 | E123: 0 | F123: 0 | G123: 128897.2 | H123: 0.19 | I123: 114.4 | J123: 128.9 | K123: 101.15
A124: 2000-06-22 | B124: 153500.95 | C124: 0 | D124: -24300 | E124: 0 | F124: 0 | G124: 129200.95 | H124: 0.19 | I124: 112.68 | J124: 129.2 | K124: 99.64
A125: 2000-06-23 | B125: 153500.95 | C125: 0 | D125: -23996.25 | E125: 0 | F125: 0 | G125: 129504.7 | H125: 0.19 | I125: 111.71 | J125: 129.5 | K125: 98.78
A126: 2000-06-26 | B126: 180948.72 | C126: 0 | D126: -51669.19 | E126: 0 | F126: 0 | G126: 129279.53 | H126: 0.4 | I126: 113.15 | J126: 129.28 | K126: 100.05
A127: 2000-06-27 | B127: 180948.72 | C127: 0 | D127: -51488.5 | E127: 0 | F127: 0 | G127: 129460.22 | H127: 0.4 | I127: 112.32 | J127: 129.46 | K127: 99.31
A128: 2000-06-28 | B128: 180948.72 | C128: 0 | D128: -52501.69 | E128: 0 | F128: 0 | G128: 128447.03 | H128: 0.41 | I128: 112.63 | J128: 128.45 | K128: 99.59
A129: 2000-06-29 | B129: 180948.72 | C129: 0 | D129: -52445.94 | E129: 0 | F129: 0 | G129: 128502.78 | H129: 0.41 | I129: 111.57 | J129: 128.5 | K129: 98.65
A130: 2000-06-30 | B130: 180948.72 | C130: 0 | D130: -55412 | E130: 0 | F130: 0 | G130: 125536.72 | H130: 0.44 | I130: 112.41 | J130: 125.54 | K130: 99.4
A131: 2000-07-03 | B131: 175974.22 | C131: 0 | D131: -50224.06 | E131: 0 | F131: 0 | G131: 125750.16 | H131: 0.4 | I131: 113.96 | J131: 125.75 | K131: 100.77
A132: 2000-07-05 | B132: 175974.22 | C132: 0 | D132: -48002.19 | E132: 0 | F132: 0 | G132: 127972.03 | H132: 0.38 | I132: 111.91 | J132: 127.97 | K132: 98.95
A133: 2000-07-06 | B133: 175974.22 | C133: 0 | D133: -51182.5 | E133: 0 | F133: 0 | G133: 124791.72 | H133: 0.41 | I133: 112.78 | J133: 124.79 | K133: 99.72
A134: 2000-07-07 | B134: 175974.22 | C134: 0 | D134: -49794.38 | E134: 0 | F134: 0 | G134: 126179.84 | H134: 0.39 | I134: 114.59 | J134: 126.18 | K134: 101.32
A135: 2000-07-10 | B135: 228519.19 | C135: 0 | D135: -101502.38 | E135: 0 | F135: 0 | G135: 127016.81 | H135: 0.8 | I135: 114.4 | J135: 127.02 | K135: 101.15
A136: 2000-07-11 | B136: 228519.19 | C136: 0 | D136: -102645.06 | E136: 0 | F136: 0 | G136: 125874.12 | H136: 0.82 | I136: 114.64 | J136: 125.87 | K136: 101.37
A137: 2000-07-12 | B137: 228519.19 | C137: 0 | D137: -103457.94 | E137: 0 | F137: 0 | G137: 125061.25 | H137: 0.83 | I137: 115.39 | J137: 125.06 | K137: 102.03
A138: 2000-07-13 | B138: 228519.19 | C138: 0 | D138: -104840.5 | E138: 0 | F138: 0 | G138: 123678.69 | H138: 0.85 | I138: 115.89 | J138: 123.68 | K138: 102.48
A139: 2000-07-14 | B139: 228519.19 | C139: 0 | D139: -105099.38 | E139: 0 | F139: 0 | G139: 123419.81 | H139: 0.85 | I139: 117.03 | J139: 123.42 | K139: 103.48
A140: 2000-07-17 | B140: 222237.19 | C140: 0 | D140: -98717 | E140: 0 | F140: 0 | G140: 123520.19 | H140: 0.8 | I140: 116.84 | J140: 123.52 | K140: 103.31
A141: 2000-07-18 | B141: 222237.19 | C141: 0 | D141: -98093 | E141: 0 | F141: 0 | G141: 124144.19 | H141: 0.79 | I141: 115.88 | J141: 124.14 | K141: 102.47
A142: 2000-07-19 | B142: 222237.19 | C142: 0 | D142: -93401.75 | E142: 0 | F142: 0 | G142: 128835.44 | H142: 0.72 | I142: 115.05 | J142: 128.84 | K142: 101.73
A143: 2000-07-20 | B143: 222237.19 | C143: 0 | D143: -96252.5 | E143: 0 | F143: 0 | G143: 125984.69 | H143: 0.76 | I143: 116.55 | J143: 125.98 | K143: 103.06
A144: 2000-07-21 | B144: 222237.19 | C144: 0 | D144: -84947.38 | E144: 0 | F144: 0 | G144: 137289.81 | H144: 0.62 | I144: 114.27 | J144: 137.29 | K144: 101.05
A145: 2000-07-24 | B145: 230934.39 | C145: 0 | D145: -86538.31 | E145: 0 | F145: 0 | G145: 144396.08 | H145: 0.6 | I145: 113.62 | J145: 144.4 | K145: 100.47
A146: 2000-07-25 | B146: 230934.39 | C146: 0 | D146: -86085.25 | E146: 0 | F146: 0 | G146: 144849.14 | H146: 0.59 | I146: 113.98 | J146: 144.85 | K146: 100.79
A147: 2000-07-26 | B147: 230934.39 | C147: 0 | D147: -84330.19 | E147: 0 | F147: 0 | G147: 146604.2 | H147: 0.58 | I147: 112.87 | J147: 146.6 | K147: 99.81
A148: 2000-07-27 | B148: 230934.39 | C148: 0 | D148: -83897.31 | E148: 0 | F148: 0 | G148: 147037.08 | H148: 0.57 | I148: 112.49 | J148: 147.04 | K148: 99.46
A149: 2000-07-28 | B149: 230934.39 | C149: 0 | D149: -85502.56 | E149: 0 | F149: 0 | G149: 145431.83 | H149: 0.59 | I149: 109.95 | J149: 145.43 | K149: 97.22
A150: 2000-07-31 | B150: 174131.08 | C150: 0 | D150: -28983.5 | E150: 0 | F150: 0 | G150: 145147.58 | H150: 0.2 | I150: 110.58 | J150: 145.15 | K150: 97.77
A151: 2000-08-01 | B151: 174131.08 | C151: 0 | D151: -29596 | E151: 0 | F151: 0 | G151: 144535.08 | H151: 0.2 | I151: 111.32 | J151: 144.54 | K151: 98.44
A152: 2000-08-02 | B152: 174131.08 | C152: 0 | D152: -30576 | E152: 0 | F152: 0 | G152: 143555.08 | H152: 0.21 | I152: 111.88 | J152: 143.56 | K152: 98.93
A153: 2000-08-03 | B153: 174131.08 | C153: 0 | D153: -29914.5 | E153: 0 | F153: 0 | G153: 144216.58 | H153: 0.21 | I153: 112.65 | J153: 144.22 | K153: 99.61
A154: 2000-08-04 | B154: 174131.08 | C154: 0 | D154: -30502.5 | E154: 0 | F154: 0 | G154: 143628.58 | H154: 0.21 | I154: 113.26 | J154: 143.63 | K154: 100.15
A155: 2000-08-07 | B155: 229221.16 | C155: 0 | D155: -85868.5 | E155: 0 | F155: 0 | G155: 143352.66 | H155: 0.6 | I155: 114.61 | J155: 143.35 | K155: 101.35
A156: 2000-08-08 | B156: 229221.16 | C156: 0 | D156: -84630.62 | E156: 0 | F156: 0 | G156: 144590.53 | H156: 0.59 | I156: 115.05 | J156: 144.59 | K156: 101.73
A157: 2000-08-09 | B157: 229221.16 | C157: 0 | D157: -84044.25 | E157: 0 | F157: 0 | G157: 145176.91 | H157: 0.58 | I157: 114.08 | J157: 145.18 | K157: 100.88
A158: 2000-08-10 | B158: 229221.16 | C158: 0 | D158: -82665.75 | E158: 0 | F158: 0 | G158: 146555.41 | H158: 0.56 | I158: 113.53 | J158: 146.56 | K158: 100.38
A159: 2000-08-11 | B159: 229221.16 | C159: 0 | D159: -79217 | E159: 0 | F159: 0 | G159: 150004.16 | H159: 0.53 | I159: 114 | J159: 150 | K159: 100.8
A160: 2000-08-14 | B160: 208737.31 | C160: 0 | D160: -59487 | E160: 0 | F160: 0 | G160: 149250.31 | H160: 0.4 | I160: 115.51 | J160: 149.25 | K160: 102.14
A161: 2000-08-15 | B161: 208737.31 | C161: 0 | D161: -58812 | E161: 0 | F161: 0 | G161: 149925.31 | H161: 0.39 | I161: 115.41 | J161: 149.93 | K161: 102.05
A162: 2000-08-16 | B162: 208737.31 | C162: 0 | D162: -58358.25 | E162: 0 | F162: 0 | G162: 150379.06 | H162: 0.39 | I162: 115 | J162: 150.38 | K162: 101.69
A163: 2000-08-17 | B163: 208737.31 | C163: 0 | D163: -62127 | E163: 0 | F163: 0 | G163: 146610.31 | H163: 0.42 | I163: 116.21 | J163: 146.61 | K163: 102.76
A164: 2000-08-18 | B164: 208737.31 | C164: 0 | D164: -60727.5 | E164: 0 | F164: 0 | G164: 148009.81 | H164: 0.41 | I164: 115.82 | J164: 148.01 | K164: 102.41
A165: 2000-08-21 | B165: 207985.78 | C165: 0 | D165: -59396.13 | E165: 0 | F165: 0 | G165: 148589.66 | H165: 0.4 | I165: 116.5 | J165: 148.59 | K165: 103.01
A166: 2000-08-22 | B166: 207985.78 | C166: 0 | D166: -58685.94 | E166: 0 | F166: 0 | G166: 149299.84 | H166: 0.39 | I166: 116.31 | J166: 149.3 | K166: 102.84
A167: 2000-08-23 | B167: 207985.78 | C167: 0 | D167: -60282.25 | E167: 0 | F167: 0 | G167: 147703.53 | H167: 0.41 | I167: 116.72 | J167: 147.7 | K167: 103.21
A168: 2000-08-24 | B168: 207985.78 | C168: 0 | D168: -59166.07 | E168: 0 | F168: 0 | G168: 148819.72 | H168: 0.4 | I168: 117.08 | J168: 148.82 | K168: 103.53
A169: 2000-08-25 | B169: 207985.78 | C169: 0 | D169: -59492.57 | E169: 0 | F169: 0 | G169: 148493.22 | H169: 0.4 | I169: 117.03 | J169: 148.49 | K169: 103.48
A170: 2000-08-28 | B170: 293239.16 | C170: 0 | D170: -146504.5 | E170: 0 | F170: 0 | G170: 146734.66 | H170: 1 | I170: 117.43 | J170: 146.73 | K170: 103.84
A171: 2000-08-29 | B171: 293239.16 | C171: 0 | D171: -150542 | E171: 0 | F171: 0 | G171: 142697.16 | H171: 1.05 | I171: 117.45 | J171: 142.7 | K171: 103.86
A172: 2000-08-30 | B172: 293239.16 | C172: 0 | D172: -159325.19 | E172: 0 | F172: 0 | G172: 133913.97 | H172: 1.19 | I172: 116.33 | J172: 133.91 | K172: 102.86
A173: 2000-08-31 | B173: 293239.16 | C173: 0 | D173: -162437.88 | E173: 0 | F173: 0 | G173: 130801.28 | H173: 1.24 | I173: 117.88 | J173: 130.8 | K173: 104.23
A174: 2000-09-01 | B174: 293239.16 | C174: 0 | D174: -163419.69 | E174: 0 | F174: 0 | G174: 129819.47 | H174: 1.26 | I174: 117.9 | J174: 129.82 | K174: 104.25
A175: 2000-09-05 | B175: 177745.17 | C175: 0 | D175: -50714.94 | E175: 0 | F175: 0 | G175: 127030.23 | H175: 0.4 | I175: 117.06 | J175: 127.03 | K175: 103.5
A176: 2000-09-06 | B176: 177745.17 | C176: 0 | D176: -49839.44 | E176: 0 | F176: 0 | G176: 127905.73 | H176: 0.39 | I176: 115.89 | J176: 127.91 | K176: 102.48
A177: 2000-09-07 | B177: 177745.17 | C177: 0 | D177: -49044.62 | E177: 0 | F177: 0 | G177: 128700.55 | H177: 0.38 | I177: 116.72 | J177: 128.7 | K177: 103.21
A178: 2000-09-08 | B178: 177745.17 | C178: 0 | D178: -48964.5 | E178: 0 | F178: 0 | G178: 128780.67 | H178: 0.38 | I178: 115.92 | J178: 128.78 | K178: 102.5
A179: 2000-09-11 | B179: 128123.29 | C179: 0 | D179: 0 | E179: 0 | F179: 0 | G179: 128123.29 | H179: 0 | I179: 115.75 | J179: 128.12 | K179: 102.35
A180: 2000-09-12 | B180: 128123.29 | C180: 0 | D180: 0 | E180: 0 | F180: 0 | G180: 128123.29 | H180: 0 | I180: 114.88 | J180: 128.12 | K180: 101.58
A181: 2000-09-13 | B181: 128123.29 | C181: 0 | D181: 0 | E181: 0 | F181: 0 | G181: 128123.29 | H181: 0 | I181: 115.21 | J181: 128.12 | K181: 101.87
A182: 2000-09-14 | B182: 128123.29 | C182: 0 | D182: 0 | E182: 0 | F182: 0 | G182: 128123.29 | H182: 0 | I182: 114.88 | J182: 128.12 | K182: 101.58
A183: 2000-09-15 | B183: 128123.29 | C183: 0 | D183: 0 | E183: 0 | F183: 0 | G183: 128123.29 | H183: 0 | I183: 113.33 | J183: 128.12 | K183: 100.21
A184: 2000-09-18 | B184: 204726.72 | C184: 0 | D184: -76712.56 | E184: 0 | F184: 0 | G184: 128014.16 | H184: 0.6 | I184: 112.21 | J184: 128.01 | K184: 99.22
A185: 2000-09-19 | B185: 204726.72 | C185: 0 | D185: -79650.62 | E185: 0 | F185: 0 | G185: 125076.09 | H185: 0.64 | I185: 113.23 | J185: 125.08 | K185: 100.12
A186: 2000-09-20 | B186: 204726.72 | C186: 0 | D186: -77266.09 | E186: 0 | F186: 0 | G186: 127460.62 | H186: 0.61 | I186: 112.39 | J186: 127.46 | K186: 99.38
A187: 2000-09-21 | B187: 204726.72 | C187: 0 | D187: -75322.12 | E187: 0 | F187: 0 | G187: 129404.59 | H187: 0.58 | I187: 112.62 | J187: 129.4 | K187: 99.59
A188: 2000-09-22 | B188: 204726.72 | C188: 0 | D188: -75738.75 | E188: 0 | F188: 0 | G188: 128987.97 | H188: 0.59 | I188: 112.7 | J188: 128.99 | K188: 99.65
A189: 2000-09-25 | B189: 209879.48 | C189: 0 | D189: -78595 | E189: 0 | F189: 0 | G189: 131284.48 | H189: 0.6 | I189: 111.83 | J189: 131.28 | K189: 98.88
A190: 2000-09-26 | B190: 209879.48 | C190: 0 | D190: -75474.31 | E190: 0 | F190: 0 | G190: 134405.17 | H190: 0.56 | I190: 110.47 | J190: 134.41 | K190: 97.68
A191: 2000-09-27 | B191: 209879.48 | C191: 0 | D191: -71751.75 | E191: 0 | F191: 0 | G191: 138127.73 | H191: 0.52 | I191: 111.05 | J191: 138.13 | K191: 98.19
A192: 2000-09-28 | B192: 209879.48 | C192: 0 | D192: -72994.62 | E192: 0 | F192: 0 | G192: 136884.86 | H192: 0.53 | I192: 113.35 | J192: 136.88 | K192: 100.23
A193: 2000-09-29 | B193: 209879.48 | C193: 0 | D193: -75480.88 | E193: 0 | F193: 0 | G193: 134398.61 | H193: 0.56 | I193: 111.41 | J193: 134.4 | K193: 98.52
A194: 2000-10-02 | B194: 166015.2 | C194: 0 | D194: -27621.94 | E194: 0 | F194: 0 | G194: 138393.27 | H194: 0.2 | I194: 111.58 | J194: 138.39 | K194: 98.67
A195: 2000-10-03 | B195: 166015.2 | C195: 0 | D195: -28393.87 | E195: 0 | F195: 0 | G195: 137621.33 | H195: 0.21 | I195: 110.54 | J195: 137.62 | K195: 97.74
A196: 2000-10-04 | B196: 166015.2 | C196: 0 | D196: -27890.44 | E196: 0 | F196: 0 | G196: 138124.77 | H196: 0.2 | I196: 111.46 | J196: 138.12 | K196: 98.56
A197: 2000-10-05 | B197: 166015.2 | C197: 0 | D197: -28427.44 | E197: 0 | F197: 0 | G197: 137587.77 | H197: 0.21 | I197: 111.85 | J197: 137.59 | K197: 98.9
A198: 2000-10-06 | B198: 166015.2 | C198: 0 | D198: -28192.5 | E198: 0 | F198: 0 | G198: 137822.7 | H198: 0.2 | I198: 109.43 | J198: 137.82 | K198: 96.76
A199: 2000-10-09 | B199: 192618.27 | C199: 0 | D199: -54970 | E199: 0 | F199: 0 | G199: 137648.27 | H199: 0.4 | I199: 108.6 | J199: 137.65 | K199: 96.03
A200: 2000-10-10 | B200: 192618.27 | C200: 0 | D200: -51979.38 | E200: 0 | F200: 0 | G200: 140638.89 | H200: 0.37 | I200: 106.81 | J200: 140.64 | K200: 94.44
A201: 2000-10-11 | B201: 192618.27 | C201: 0 | D201: -49007.23 | E201: 0 | F201: 0 | G201: 143611.03 | H201: 0.34 | I201: 105.91 | J201: 143.61 | K201: 93.65
... 3415 more rows
